Workbook

Sheet class rolls
A1: How often did the class roll a 4 in 12 trials?
C2: p = | D2: =1/6 -> 0.1666666667
C3: n = | D3: 12 | F3: class size= | G3: 33
D5: predicted | E5: prob (binomial)
B6: 0 | C6: 2 | D6: =E6*$G$3 -> 3.701169608 | E6: =FACT($D$3)/FACT($D$3-B6)/FACT(B6)*$D$2^B6*(1-$D$2)^($D$3-B6) -> 0.1121566548
B7: 1 | C7: 10 | D7: =E7*$G$3 -> 8.882807059 | E7: 0.2691759715
B8: 2 | C8: 8 | D8: 9.771087765 | E8: 0.2960935686
B9: 3 | C9: 8 | D9: 6.51405851 | E9: 0.1973957124
B10: 4 | C10: 2 | D10: 2.931326329 | E10: 0.08882807059
B11: 5 | C11: 3 | D11: 0.9380244254 | E11: 0.02842498259
B12: 6 | C12: 0 | D12: 0.2188723659 | E12: 0.006632495937
B13: 7 | D13: 0.03752097702 | E13: 0.001136999304
B14: 8 | D14: 0.004690122127 | E14: 0.0001421249129
B15: 9 | D15: 0.0004168997446 | E15: 1.263332559e-05
B16: 10 | D16: 2.501398468e-05 | E16: 7.579995357e-07
B17: 11 | D17: 9.095994428e-07 | E17: 2.756361948e-08
B18: 12 | D18: 1.515999071e-08 | E18: 4.59393658e-10
C20: =SUM(C6:C18) -> 33 | D20: =SUM(D6:D18) -> 33

Sheet 12
S2: Have cursor in BLUE cell | T2: Have cursor in BLUE cell
S3: before hitting this button!
A4: roll | B4: U[0,1] | C4: outcome
A5: 1 | B5: =RAND() -> 0.2429056932 | C5: =INT(B5*6+1) -> 2 | P5: Results of experiments
A6: 2 | B6: =RAND() -> 0.1991124854 | C6: =INT(B6*6+1) -> 2 | P6: estimated probability of rolling a 4: | Y6: average | Z6: =AVERAGE(Z9:Z508) -> 0.1728333333
A7: 3 | B7: 0.6571583217 | C7: 4 | Y7: std. error | Z7: =STDEV(Z9:Z508) -> 0.1091620836
A8: 4 | B8: 0.96815397 | C8: 6 | E8: outcome | F8: count | G8: rel freq. | Q8: count | R8: est. prob | S8: sq error | U8: true
A9: 5 | B9: 0.7333510227 | C9: 5 | E9: 1 | F9: =FREQUENCY(C5:C16,E9:E14) -> 1 | G9: =F9/$F$16 -> 0.08333333333 | P9: 1 | Q9: 4 | R9: 0.3333333333 | S9: =(R9-U9)^2 -> 0.02777777778 | U9: =1/6 -> 0.1666666667 | X9: 1 | Y9: 1 | Z9: 0.08333333333 | AK9: 1 | AL9: 0 | AM9: 2 | AN9: =AL9*6 -> 0 | AO9: 3 | AP9: =AN9+1 -> 1 | AQ9: 4 | AR9: =AP9 -> 1
A10: 6 | B10: 0.8198261842 | C10: 5 | E10: 2 | F10: 3 | G10: 0.25 | P10: 2 | Q10: 3 | R10: 0.25 | S10: =(R10-U10)^2 -> 0.006944444444 | U10: =1/6 -> 0.1666666667 | X10: 2 | Y10: 2 | Z10: 0.1666666667 | AK10: 1 | AL10: =AL9+1/6 -> 0.1666666667 | AM10: 2 | AN10: 1 | AO10: 3 | AP10: 2 | AQ10: 4 | AR10: =AP10 -> 2
A11: 7 | B11: 0.7049000824 | C11: 5 | E11: 3 | F11: 2 | G11: 0.1666666667 | P11: 3 | Q11: 2 | R11: 0.1666666667 | S11: 0 | U11: 0.1666666667 | X11: 3 | Y11: 1 | Z11: 0.08333333333 | AK11: 1 | AL11: =AL10+1/6 -> 0.3333333333 | AM11: 2 | AN11: 2 | AO11: 3 | AP11: 3 | AQ11: 4 | AR11: 3
A12: 8 | B12: 0.2166606529 | C12: 2 | E12: 4 | F12: 2 | G12: 0.1666666667 | P12: 4 | Q12: 0 | R12: 0 | S12: 0.02777777778 | U12: 0.1666666667 | X12: 4 | Y12: 1 | Z12: 0.08333333333 | AK12: 1 | AL12: 0.5 | AM12: 2 | AN12: 3 | AO12: 3 | AP12: 4 | AQ12: 4 | AR12: 4
A13: 9 | B13: 0.06158041191 | C13: 1 | E13: 5 | F13: 3 | G13: 0.25 | P13: 5 | Q13: 3 | R13: 0.25 | S13: 0.006944444444 | U13: 0.1666666667 | X13: 5 | Y13: 3 | Z13: 0.25 | AK13: 1 | AL13: 0.6666666667 | AM13: 2 | AN13: 4 | AO13: 3 | AP13: 5 | AQ13: 4 | AR13: 5
A14: 10 | B14: 0.5800711527 | C14: 4 | E14: 6 | F14: 1 | G14: 0.08333333333 | P14: 6 | Q14: 1 | R14: 0.08333333333 | S14: 0.006944444444 | U14: 0.1666666667 | X14: 6 | Y14: 5 | Z14: 0.4166666667 | AK14: 1 | AL14: 0.8333333333 | AM14: 2 | AN14: 5 | AO14: 3 | AP14: 6 | AQ14: 4 | AR14: 6
A15: 11 | B15: 0.3960725243 | C15: 3 | P15: 7 | Q15: 4 | R15: 0.3333333333 | S15: 0.02777777778 | U15: 0.1666666667 | X15: 7 | Y15: 2 | Z15: 0.1666666667 | AK15: 1 | AL15: 1 | AM15: 2 | AN15: 6 | AO15: 3 | AP15: 7
A16: 12 | B16: 0.3614028935 | C16: 3 | F16: =SUM(F9:F14) -> 12 | G16: =SUM(G9:G14) -> 1 | P16: 8 | Q16: 3 | R16: 0.25 | S16: 0.006944444444 | U16: 0.1666666667 | X16: 8 | Y16: 3 | Z16: 0.25
P17: 9 | Q17: 5 | R17: 0.4166666667 | S17: 0.0625 | U17: 0.1666666667 | X17: 9 | Y17: 4 | Z17: 0.3333333333
P18: 10 | Q18: 2 | R18: 0.1666666667 | S18: 0 | U18: 0.1666666667 | X18: 10 | Y18: 2 | Z18: 0.1666666667
E19: Expected count is | P19: 11 | Q19: 0 | R19: 0 | S19: 0.02777777778 | U19: 0.1666666667 | X19: 11 | Y19: 2 | Z19: 0.1666666667
E20: 12 * 1/6 = | F20: 2 | P20: 12 | Q20: 2 | R20: 0.1666666667 | S20: 0 | U20: 0.1666666667 | X20: 12 | Y20: 1 | Z20: 0.08333333333
P21: 13 | Q21: 1 | R21: 0.08333333333 | S21: 0.006944444444 | U21: 0.1666666667 | X21: 13 | Y21: 3 | Z21: 0.25
E22: distribution mean of X | P22: 14 | Q22: 1 | R22: 0.08333333333 | S22: 0.006944444444 | U22: 0.1666666667 | X22: 14 | Y22: 2 | Z22: 0.1666666667
E23: 1/6*(1+2+3+4+5+6)= | F23: 3.5 | P23: 15 | Q23: 3 | R23: 0.25 | S23: 0.006944444444 | U23: 0.1666666667 | X23: 15 | Y23: 1 | Z23: 0.08333333333
P24: 16 | Q24: 2 | R24: 0.1666666667 | S24: 0 | U24: 0.1666666667 | X24: 16 | Y24: 3 | Z24: 0.25
E25: Observed mean of X | P25: 17 | Q25: 4 | R25: 0.3333333333 | S25: 0.02777777778 | U25: 0.1666666667 | X25: 17 | Y25: 3 | Z25: 0.25
F26: =E9*G9+E10*G10+E11*G11+E12*G12+E13*G13+E14*G14 -> 3.5 | P26: 18 | Q26: 2 | R26: 0.1666666667 | S26: 0 | U26: 0.1666666667 | X26: 18 | Y26: 3 | Z26: 0.25
P27: 19 | Q27: 2 | R27: 0.1666666667 | S27: 0 | U27: 0.1666666667 | X27: 19 | Y27: 4 | Z27: 0.3333333333
P28: 20 | Q28: 3 | R28: 0.25 | S28: 0.006944444444 | U28: 0.1666666667 | X28: 20 | Y28: 3 | Z28: 0.25
X29: 21 | Y29: 1 | Z29: 0.08333333333
Q30: average | R30: =AVERAGE(R9:R28) -> 0.1958333333 | S30: true = | T30: =1/6 -> 0.1666666667 | X30: 22 | Y30: 3 | Z30: 0.25
Q31: std. error | R31: =SQRT(SUM(S9:S28)/($P$28-1)) -> 0.1162901192 | X31: 23 | Y31: 3 | Z31: 0.25
X32: 24 | Y32: 2 | Z32: 0.1666666667
X33: 25 | Y33: 4 | Z33: 0.3333333333
X34: 26 | Y34: 3 | Z34: 0.25
X35: 27 | Y35: 2 | Z35: 0.1666666667
X36: 28 | Y36: 4 | Z36: 0.3333333333
X37: 29 | Y37: 3 | Z37: 0.25
X38: 30 | Y38: 2 | Z38: 0.1666666667
X39: 31 | Y39: 2 | Z39: 0.1666666667
X40: 32 | Y40: 1 | Z40: 0.08333333333
X41: 33 | Y41: 3 | Z41: 0.25
X42: 34 | Y42: 1 | Z42: 0.08333333333
X43: 35 | Y43: 1 | Z43: 0.08333333333
X44: 36 | Y44: 0 | Z44: 0
X45: 37 | Y45: 3 | Z45: 0.25
X46: 38 | Y46: 4 | Z46: 0.3333333333
X47: 39 | Y47: 2 | Z47: 0.1666666667
X48: 40 | Y48: 2 | Z48: 0.1666666667
X49: 41 | Y49: 1 | Z49: 0.08333333333
X50: 42 | Y50: 2 | Z50: 0.1666666667
X51: 43 | Y51: 3 | Z51: 0.25
X52: 44 | Y52: 2 | Z52: 0.1666666667
X53: 45 | Y53: 2 | Z53: 0.1666666667
X54: 46 | Y54: 5 | Z54: 0.4166666667
X55: 47 | Y55: 2 | Z55: 0.1666666667
X56: 48 | Y56: 1 | Z56: 0.08333333333
X57: 49 | Y57: 2 | Z57: 0.1666666667
X58: 50 | Y58: 0 | Z58: 0
X59: 51 | Y59: 3 | Z59: 0.25
X60: 52 | Y60: 1 | Z60: 0.08333333333
X61: 53 | Y61: 2 | Z61: 0.1666666667
X62: 54 | Y62: 5 | Z62: 0.4166666667
X63: 55 | Y63: 4 | Z63: 0.3333333333
X64: 56 | Y64: 3 | Z64: 0.25
X65: 57 | Y65: 1 | Z65: 0.08333333333
X66: 58 | Y66: 2 | Z66: 0.1666666667
X67: 59 | Y67: 3 | Z67: 0.25
X68: 60 | Y68: 2 | Z68: 0.1666666667
X69: 61 | Y69: 3 | Z69: 0.25
X70: 62 | Y70: 1 | Z70: 0.08333333333
X71: 63 | Y71: 2 | Z71: 0.1666666667
X72: 64 | Y72: 1 | Z72: 0.08333333333
X73: 65 | Y73: 2 | Z73: 0.1666666667
X74: 66 | Y74: 2 | Z74: 0.1666666667
X75: 67 | Y75: 4 | Z75: 0.3333333333
X76: 68 | Y76: 2 | Z76: 0.1666666667
X77: 69 | Y77: 1 | Z77: 0.08333333333
X78: 70 | Y78: 1 | Z78: 0.08333333333
X79: 71 | Y79: 0 | Z79: 0
X80: 72 | Y80: 0 | Z80: 0
X81: 73 | Y81: 2 | Z81: 0.1666666667
X82: 74 | Y82: 0 | Z82: 0
X83: 75 | Y83: 0 | Z83: 0
X84: 76 | Y84: 4 | Z84: 0.3333333333
X85: 77 | Y85: 5 | Z85: 0.4166666667
X86: 78 | Y86: 5 | Z86: 0.4166666667
X87: 79 | Y87: 2 | Z87: 0.1666666667
X88: 80 | Y88: 4 | Z88: 0.3333333333
X89: 81 | Y89: 2 | Z89: 0.1666666667
X90: 82 | Y90: 2 | Z90: 0.1666666667
X91: 83 | Y91: 1 | Z91: 0.08333333333
X92: 84 | Y92: 2 | Z92: 0.1666666667
X93: 85 | Y93: 1 | Z93: 0.08333333333
X94: 86 | Y94: 3 | Z94: 0.25
X95: 87 | Y95: 2 | Z95: 0.1666666667
X96: 88 | Y96: 4 | Z96: 0.3333333333
X97: 89 | Y97: 1 | Z97: 0.08333333333
X98: 90 | Y98: 0 | Z98: 0
X99: 91 | Y99: 1 | Z99: 0.08333333333
X100: 92 | Y100: 1 | Z100: 0.08333333333
X101: 93 | Y101: 4 | Z101: 0.3333333333
X102: 94 | Y102: 1 | Z102: 0.08333333333
X103: 95 | Y103: 3 | Z103: 0.25
X104: 96 | Y104: 2 | Z104: 0.1666666667
X105: 97 | Y105: 2 | Z105: 0.1666666667
X106: 98 | Y106: 1 | Z106: 0.08333333333
X107: 99 | Y107: 2 | Z107: 0.1666666667
X108: 100 | Y108: 2 | Z108: 0.1666666667
X109: 101 | Y109: 1 | Z109: 0.08333333333
X110: 102 | Y110: 5 | Z110: 0.4166666667
X111: 103 | Y111: 4 | Z111: 0.3333333333
X112: 104 | Y112: 2 | Z112: 0.1666666667
X113: 105 | Y113: 6 | Z113: 0.5
X114: 106 | Y114: 2 | Z114: 0.1666666667
X115: 107 | Y115: 2 | Z115: 0.1666666667
X116: 108 | Y116: 1 | Z116: 0.08333333333
X117: 109 | Y117: 4 | Z117: 0.3333333333
X118: 110 | Y118: 2 | Z118: 0.1666666667
X119: 111 | Y119: 2 | Z119: 0.1666666667
X120: 112 | Y120: 1 | Z120: 0.08333333333
X121: 113 | Y121: 1 | Z121: 0.08333333333
X122: 114 | Y122: 2 | Z122: 0.1666666667
X123: 115 | Y123: 1 | Z123: 0.08333333333
X124: 116 | Y124: 0 | Z124: 0
X125: 117 | Y125: 1 | Z125: 0.08333333333
X126: 118 | Y126: 2 | Z126: 0.1666666667
X127: 119 | Y127: 1 | Z127: 0.08333333333
X128: 120 | Y128: 2 | Z128: 0.1666666667
X129: 121 | Y129: 2 | Z129: 0.1666666667
X130: 122 | Y130: 4 | Z130: 0.3333333333
X131: 123 | Y131: 3 | Z131: 0.25
X132: 124 | Y132: 1 | Z132: 0.08333333333
X133: 125 | Y133: 2 | Z133: 0.1666666667
X134: 126 | Y134: 1 | Z134: 0.08333333333
X135: 127 | Y135: 5 | Z135: 0.4166666667
X136: 128 | Y136: 0 | Z136: 0
X137: 129 | Y137: 3 | Z137: 0.25
X138: 130 | Y138: 1 | Z138: 0.08333333333
X139: 131 | Y139: 1 | Z139: 0.08333333333
X140: 132 | Y140: 2 | Z140: 0.1666666667
X141: 133 | Y141: 1 | Z141: 0.08333333333
X142: 134 | Y142: 5 | Z142: 0.4166666667
X143: 135 | Y143: 1 | Z143: 0.08333333333
X144: 136 | Y144: 1 | Z144: 0.08333333333
X145: 137 | Y145: 2 | Z145: 0.1666666667
X146: 138 | Y146: 2 | Z146: 0.1666666667
X147: 139 | Y147: 2 | Z147: 0.1666666667
X148: 140 | Y148: 4 | Z148: 0.3333333333
X149: 141 | Y149: 1 | Z149: 0.08333333333
X150: 142 | Y150: 1 | Z150: 0.08333333333
X151: 143 | Y151: 1 | Z151: 0.08333333333
X152: 144 | Y152: 1 | Z152: 0.08333333333
X153: 145 | Y153: 4 | Z153: 0.3333333333
X154: 146 | Y154: 3 | Z154: 0.25
X155: 147 | Y155: 2 | Z155: 0.1666666667
X156: 148 | Y156: 2 | Z156: 0.1666666667
X157: 149 | Y157: 0 | Z157: 0
X158: 150 | Y158: 3 | Z158: 0.25
X159: 151 | Y159: 3 | Z159: 0.25
X160: 152 | Y160: 3 | Z160: 0.25
X161: 153 | Y161: 5 | Z161: 0.4166666667
X162: 154 | Y162: 2 | Z162: 0.1666666667
X163: 155 | Y163: 5 | Z163: 0.4166666667
X164: 156 | Y164: 2 | Z164: 0.1666666667
X165: 157 | Y165: 3 | Z165: 0.25
X166: 158 | Y166: 4 | Z166: 0.3333333333
X167: 159 | Y167: 2 | Z167: 0.1666666667
X168: 160 | Y168: 4 | Z168: 0.3333333333
X169: 161 | Y169: 5 | Z169: 0.4166666667
X170: 162 | Y170: 1 | Z170: 0.08333333333
X171: 163 | Y171: 1 | Z171: 0.08333333333
X172: 164 | Y172: 3 | Z172: 0.25
X173: 165 | Y173: 2 | Z173: 0.1666666667
X174: 166 | Y174: 2 | Z174: 0.1666666667
X175: 167 | Y175: 2 | Z175: 0.1666666667
X176: 168 | Y176: 2 | Z176: 0.1666666667
X177: 169 | Y177: 1 | Z177: 0.08333333333
X178: 170 | Y178: 4 | Z178: 0.3333333333
X179: 171 | Y179: 3 | Z179: 0.25
X180: 172 | Y180: 3 | Z180: 0.25
X181: 173 | Y181: 1 | Z181: 0.08333333333
X182: 174 | Y182: 0 | Z182: 0
X183: 175 | Y183: 3 | Z183: 0.25
X184: 176 | Y184: 3 | Z184: 0.25
X185: 177 | Y185: 2 | Z185: 0.1666666667
X186: 178 | Y186: 0 | Z186: 0
X187: 179 | Y187: 3 | Z187: 0.25
X188: 180 | Y188: 3 | Z188: 0.25
X189: 181 | Y189: 1 | Z189: 0.08333333333
X190: 182 | Y190: 0 | Z190: 0
X191: 183 | Y191: 0 | Z191: 0
X192: 184 | Y192: 5 | Z192: 0.4166666667
X193: 185 | Y193: 2 | Z193: 0.1666666667
X194: 186 | Y194: 3 | Z194: 0.25
X195: 187 | Y195: 4 | Z195: 0.3333333333
X196: 188 | Y196: 3 | Z196: 0.25
X197: 189 | Y197: 5 | Z197: 0.4166666667
X198: 190 | Y198: 2 | Z198: 0.1666666667
X199: 191 | Y199: 2 | Z199: 0.1666666667
X200: 192 | Y200: 1 | Z200: 0.08333333333
X201: 193 | Y201: 1 | Z201: 0.08333333333
... 307 more rows

Sheet 100
S2: Have cursor in BLUE cell
S3: before hitting this button!
A4: roll | B4: U[0,1] | C4: outcome
A5: 1 | B5: =RAND() -> 0.6711200908 | C5: =INT(B5*6+1) -> 5 | P5: Results of experiments
A6: 2 | B6: =RAND() -> 0.2304378345 | C6: =INT(B6*6+1) -> 2 | P6: estimated probability of rolling a 4: | Y6: average | Z6: =AVERAGE(Z9:Z508) -> 0.16618
A7: 3 | B7: 0.7137421052 | C7: 5 | Y7: std. error | Z7: =STDEV(Z9:Z508) -> 0.03613612097
A8: 4 | B8: 0.9145765581 | C8: 6 | E8: outcome | F8: count | G8: rel freq. | Q8: count | R8: est. prob | S8: sq error | U8: true
A9: 5 | B9: 0.8844016355 | C9: 6 | E9: 1 | F9: =FREQUENCY(C5:C104,E9:E14) -> 10 | G9: =F9/$F$16 -> 0.1 | P9: 1 | Q9: 13 | R9: 0.13 | S9: =(R9-U9)^2 -> 0.001344444444 | U9: =1/6 -> 0.1666666667 | X9: 1 | Y9: 11 | Z9: 0.11
A10: 6 | B10: 0.4261183399 | C10: 3 | E10: 2 | F10: 25 | G10: 0.25 | P10: 2 | Q10: 22 | R10: 0.22 | S10: =(R10-U10)^2 -> 0.002844444444 | U10: =1/6 -> 0.1666666667 | X10: 2 | Y10: 11 | Z10: 0.11
A11: 7 | B11: 0.2318887427 | C11: 2 | E11: 3 | F11: 15 | G11: 0.15 | P11: 3 | Q11: 15 | R11: 0.15 | S11: 0.0002777777778 | U11: 0.1666666667 | X11: 3 | Y11: 18 | Z11: 0.18
A12: 8 | B12: 0.9225217406 | C12: 6 | E12: 4 | F12: 10 | G12: 0.1 | P12: 4 | Q12: 14 | R12: 0.14 | S12: 0.0007111111111 | U12: 0.1666666667 | X12: 4 | Y12: 18 | Z12: 0.18
A13: 9 | B13: 0.7024760639 | C13: 5 | E13: 5 | F13: 18 | G13: 0.18 | P13: 5 | Q13: 17 | R13: 0.17 | S13: 1.111111111e-05 | U13: 0.1666666667 | X13: 5 | Y13: 21 | Z13: 0.21
A14: 10 | B14: 0.2974199201 | C14: 2 | E14: 6 | F14: 22 | G14: 0.22 | P14: 6 | Q14: 13 | R14: 0.13 | S14: 0.001344444444 | U14: 0.1666666667 | X14: 6 | Y14: 16 | Z14: 0.16
A15: 11 | B15: 0.2613331762 | C15: 2 | P15: 7 | Q15: 18 | R15: 0.18 | S15: 0.0001777777778 | U15: 0.1666666667 | X15: 7 | Y15: 17 | Z15: 0.17
A16: 12 | B16: 0.6258515757 | C16: 4 | F16: =SUM(F9:F14) -> 100 | G16: =SUM(G9:G14) -> 1 | P16: 8 | Q16: 17 | R16: 0.17 | S16: 1.111111111e-05 | U16: 0.1666666667 | X16: 8 | Y16: 17 | Z16: 0.17
A17: 13 | B17: 0.8453325944 | C17: 6 | P17: 9 | Q17: 18 | R17: 0.18 | S17: 0.0001777777778 | U17: 0.1666666667 | X17: 9 | Y17: 15 | Z17: 0.15
A18: 14 | B18: 0.9269618055 | C18: 6 | P18: 10 | Q18: 19 | R18: 0.19 | S18: 0.0005444444444 | U18: 0.1666666667 | X18: 10 | Y18: 13 | Z18: 0.13
A19: 15 | B19: 0.5694741376 | C19: 4 | E19: Expected count is | P19: 11 | Q19: 12 | R19: 0.12 | S19: 0.002177777778 | U19: 0.1666666667 | X19: 11 | Y19: 17 | Z19: 0.17
A20: 16 | B20: 0.1034438963 | C20: 1 | E20: 100 * 1/6 = | F20: =100*1/6 -> 16.66666667 | P20: 12 | Q20: 16 | R20: 0.16 | S20: 4.444444444e-05 | U20: 0.1666666667 | X20: 12 | Y20: 16 | Z20: 0.16
A21: 17 | B21: 0.7468589573 | C21: 5 | P21: 13 | Q21: 21 | R21: 0.21 | S21: 0.001877777778 | U21: 0.1666666667 | X21: 13 | Y21: 16 | Z21: 0.16
A22: 18 | B22: 0.08950127321 | C22: 1 | E22: distribution mean of X | P22: 14 | Q22: 17 | R22: 0.17 | S22: 1.111111111e-05 | U22: 0.1666666667 | X22: 14 | Y22: 15 | Z22: 0.15
A23: 19 | B23: 0.6553306469 | C23: 4 | E23: 1/6*(1+2+3+4+5+6)= | F23: 3.5 | P23: 15 | Q23: 15 | R23: 0.15 | S23: 0.0002777777778 | U23: 0.1666666667 | X23: 15 | Y23: 15 | Z23: 0.15
A24: 20 | B24: 0.2893736871 | C24: 2 | P24: 16 | Q24: 21 | R24: 0.21 | S24: 0.001877777778 | U24: 0.1666666667 | X24: 16 | Y24: 26 | Z24: 0.26
A25: 21 | B25: 0.211945104 | C25: 2 | E25: Observed mean of X | P25: 17 | Q25: 17 | R25: 0.17 | S25: 1.111111111e-05 | U25: 0.1666666667 | X25: 17 | Y25: 11 | Z25: 0.11
A26: 22 | B26: 0.5952002902 | C26: 4 | F26: =E9*G9+E10*G10+E11*G11+E12*G12+E13*G13+E14*G14 -> 3.67 | P26: 18 | Q26: 13 | R26: 0.13 | S26: 0.001344444444 | U26: 0.1666666667 | X26: 18 | Y26: 18 | Z26: 0.18
A27: 23 | B27: 0.7705624218 | C27: 5 | P27: 19 | Q27: 18 | R27: 0.18 | S27: 0.0001777777778 | U27: 0.1666666667 | X27: 19 | Y27: 17 | Z27: 0.17
A28: 24 | B28: 0.8445990517 | C28: 6 | P28: 20 | Q28: 15 | R28: 0.15 | S28: 0.0002777777778 | U28: 0.1666666667 | X28: 20 | Y28: 16 | Z28: 0.16
A29: 25 | B29: 0.07226358528 | C29: 1 | X29: 21 | Y29: 14 | Z29: 0.14
A30: 26 | B30: 0.8927787752 | C30: 6 | Q30: average | R30: =AVERAGE(R9:R28) -> 0.1655 | S30: true = | T30: =1/6 -> 0.1666666667 | X30: 22 | Y30: 13 | Z30: 0.13
A31: 27 | B31: 0.8233347849 | C31: 5 | Q31: std. error | R31: =SQRT(SUM(S9:S28)/($P$28-1)) -> 0.02858249577 | X31: 23 | Y31: 28 | Z31: 0.28
A32: 28 | B32: 0.3552106034 | C32: 3 | X32: 24 | Y32: 14 | Z32: 0.14
A33: 29 | B33: 0.4067517867 | C33: 3 | X33: 25 | Y33: 18 | Z33: 0.18
A34: 30 | B34: 0.4198764908 | C34: 3 | X34: 26 | Y34: 18 | Z34: 0.18
A35: 31 | B35: 0.2061352832 | C35: 2 | X35: 27 | Y35: 15 | Z35: 0.15
A36: 32 | B36: 0.8300980567 | C36: 5 | X36: 28 | Y36: 14 | Z36: 0.14
A37: 33 | B37: 0.7679338255 | C37: 5 | X37: 29 | Y37: 19 | Z37: 0.19
A38: 34 | B38: 0.3718212986 | C38: 3 | X38: 30 | Y38: 19 | Z38: 0.19
A39: 35 | B39: 0.9248371804 | C39: 6 | X39: 31 | Y39: 18 | Z39: 0.18
A40: 36 | B40: 0.3223249719 | C40: 2 | X40: 32 | Y40: 15 | Z40: 0.15
A41: 37 | B41: 0.2744259968 | C41: 2 | X41: 33 | Y41: 14 | Z41: 0.14
A42: 38 | B42: 0.6335436369 | C42: 4 | X42: 34 | Y42: 18 | Z42: 0.18
A43: 39 | B43: 0.4702318321 | C43: 3 | X43: 35 | Y43: 9 | Z43: 0.09
A44: 40 | B44: 0.7474759814 | C44: 5 | X44: 36 | Y44: 18 | Z44: 0.18
A45: 41 | B45: 0.436824713 | C45: 3 | X45: 37 | Y45: 11 | Z45: 0.11
A46: 42 | B46: 0.2742947687 | C46: 2 | X46: 38 | Y46: 14 | Z46: 0.14
A47: 43 | B47: 0.2931673836 | C47: 2 | X47: 39 | Y47: 13 | Z47: 0.13
A48: 44 | B48: 0.7954907797 | C48: 5 | X48: 40 | Y48: 17 | Z48: 0.17
A49: 45 | B49: 0.3789302539 | C49: 3 | X49: 41 | Y49: 15 | Z49: 0.15
A50: 46 | B50: 0.1996893298 | C50: 2 | X50: 42 | Y50: 16 | Z50: 0.16
A51: 47 | B51: 0.3307339404 | C51: 2 | X51: 43 | Y51: 20 | Z51: 0.2
A52: 48 | B52: 0.5194105379 | C52: 4 | X52: 44 | Y52: 14 | Z52: 0.14
A53: 49 | B53: 0.4782044864 | C53: 3 | X53: 45 | Y53: 18 | Z53: 0.18
A54: 50 | B54: 0.6494623813 | C54: 4 | X54: 46 | Y54: 15 | Z54: 0.15
A55: 51 | B55: 0.5097366238 | C55: 4 | X55: 47 | Y55: 9 | Z55: 0.09
A56: 52 | B56: 0.7275491402 | C56: 5 | X56: 48 | Y56: 16 | Z56: 0.16
A57: 53 | B57: 0.9232175961 | C57: 6 | X57: 49 | Y57: 17 | Z57: 0.17
A58: 54 | B58: 0.6872193332 | C58: 5 | X58: 50 | Y58: 21 | Z58: 0.21
A59: 55 | B59: 0.2098670191 | C59: 2 | X59: 51 | Y59: 20 | Z59: 0.2
A60: 56 | B60: 0.1150750405 | C60: 1 | X60: 52 | Y60: 15 | Z60: 0.15
A61: 57 | B61: 0.4243625828 | C61: 3 | X61: 53 | Y61: 17 | Z61: 0.17
A62: 58 | B62: 0.3264539582 | C62: 2 | X62: 54 | Y62: 18 | Z62: 0.18
A63: 59 | B63: 0.9549722791 | C63: 6 | X63: 55 | Y63: 21 | Z63: 0.21
A64: 60 | B64: 0.1459776535 | C64: 1 | X64: 56 | Y64: 15 | Z64: 0.15
A65: 61 | B65: 0.1321499137 | C65: 1 | X65: 57 | Y65: 17 | Z65: 0.17
A66: 62 | B66: 0.1808651769 | C66: 2 | X66: 58 | Y66: 19 | Z66: 0.19
A67: 63 | B67: 0.9132080783 | C67: 6 | X67: 59 | Y67: 17 | Z67: 0.17
A68: 64 | B68: 0.4767679677 | C68: 3 | X68: 60 | Y68: 21 | Z68: 0.21
A69: 65 | B69: 0.4470013992 | C69: 3 | X69: 61 | Y69: 14 | Z69: 0.14
A70: 66 | B70: =RAND() -> 0.2112594972 | C70: =INT(B70*6+1) -> 2 | X70: 62 | Y70: 18 | Z70: 0.18
A71: 67 | B71: 0.9931554763 | C71: 6 | X71: 63 | Y71: 12 | Z71: 0.12
A72: 68 | B72: 0.759347179 | C72: 5 | X72: 64 | Y72: 18 | Z72: 0.18
A73: 69 | B73: 0.9022075822 | C73: 6 | X73: 65 | Y73: 12 | Z73: 0.12
A74: 70 | B74: 0.7895475405 | C74: 5 | X74: 66 | Y74: 13 | Z74: 0.13
A75: 71 | B75: 0.2072002842 | C75: 2 | X75: 67 | Y75: 10 | Z75: 0.1
A76: 72 | B76: 0.02742053703 | C76: 1 | X76: 68 | Y76: 12 | Z76: 0.12
A77: 73 | B77: 0.6840940078 | C77: 5 | X77: 69 | Y77: 27 | Z77: 0.27
A78: 74 | B78: 0.8795280987 | C78: 6 | X78: 70 | Y78: 16 | Z78: 0.16
A79: 75 | B79: 0.05715186776 | C79: 1 | X79: 71 | Y79: 13 | Z79: 0.13
A80: 76 | B80: 0.8452507027 | C80: 6 | X80: 72 | Y80: 16 | Z80: 0.16
A81: 77 | B81: 0.2319399675 | C81: 2 | X81: 73 | Y81: 17 | Z81: 0.17
A82: 78 | B82: 0.9297808538 | C82: 6 | X82: 74 | Y82: 11 | Z82: 0.11
A83: 79 | B83: 0.4162632705 | C83: 3 | X83: 75 | Y83: 16 | Z83: 0.16
A84: 80 | B84: 0.6424047336 | C84: 4 | X84: 76 | Y84: 18 | Z84: 0.18
A85: 81 | B85: 0.1926287233 | C85: 2 | X85: 77 | Y85: 11 | Z85: 0.11
A86: 82 | B86: 0.08643600677 | C86: 1 | X86: 78 | Y86: 11 | Z86: 0.11
A87: 83 | B87: 0.8734430602 | C87: 6 | X87: 79 | Y87: 13 | Z87: 0.13
A88: 84 | B88: 0.1690855457 | C88: 2 | X88: 80 | Y88: 21 | Z88: 0.21
A89: 85 | B89: 0.1521985705 | C89: 1 | X89: 81 | Y89: 11 | Z89: 0.11
A90: 86 | B90: 0.2620647324 | C90: 2 | X90: 82 | Y90: 15 | Z90: 0.15
A91: 87 | B91: 0.8589018427 | C91: 6 | X91: 83 | Y91: 19 | Z91: 0.19
A92: 88 | B92: 0.8666654362 | C92: 6 | X92: 84 | Y92: 18 | Z92: 0.18
A93: 89 | B93: 0.9490665431 | C93: 6 | X93: 85 | Y93: 15 | Z93: 0.15
A94: 90 | B94: 0.9206332178 | C94: 6 | X94: 86 | Y94: 14 | Z94: 0.14
A95: 91 | B95: 0.322443112 | C95: 2 | X95: 87 | Y95: 12 | Z95: 0.12
A96: 92 | B96: 0.2341868582 | C96: 2 | X96: 88 | Y96: 17 | Z96: 0.17
A97: 93 | B97: 0.7072176948 | C97: 5 | X97: 89 | Y97: 15 | Z97: 0.15
A98: 94 | B98: 0.7427113763 | C98: 5 | X98: 90 | Y98: 9 | Z98: 0.09
A99: 95 | B99: 0.6698824029 | C99: 5 | X99: 91 | Y99: 13 | Z99: 0.13
A100: 96 | B100: 0.9598304771 | C100: 6 | X100: 92 | Y100: 20 | Z100: 0.2
A101: 97 | B101: 0.604863973 | C101: 4 | X101: 93 | Y101: 17 | Z101: 0.17
A102: 98 | B102: 0.2492041785 | C102: 2 | X102: 94 | Y102: 16 | Z102: 0.16
A103: 99 | B103: 0.355469525 | C103: 3 | X103: 95 | Y103: 15 | Z103: 0.15
A104: 100 | B104: 0.3727177472 | C104: 3 | X104: 96 | Y104: 16 | Z104: 0.16
X105: 97 | Y105: 15 | Z105: 0.15
X106: 98 | Y106: 15 | Z106: 0.15
X107: 99 | Y107: 19 | Z107: 0.19
X108: 100 | Y108: 19 | Z108: 0.19
X109: 101 | Y109: 19 | Z109: 0.19
X110: 102 | Y110: 8 | Z110: 0.08
X111: 103 | Y111: 23 | Z111: 0.23
X112: 104 | Y112: 18 | Z112: 0.18
X113: 105 | Y113: 19 | Z113: 0.19
X114: 106 | Y114: 20 | Z114: 0.2
X115: 107 | Y115: 14 | Z115: 0.14
X116: 108 | Y116: 12 | Z116: 0.12
X117: 109 | Y117: 19 | Z117: 0.19
X118: 110 | Y118: 13 | Z118: 0.13
X119: 111 | Y119: 17 | Z119: 0.17
X120: 112 | Y120: 18 | Z120: 0.18
X121: 113 | Y121: 19 | Z121: 0.19
X122: 114 | Y122: 13 | Z122: 0.13
X123: 115 | Y123: 15 | Z123: 0.15
X124: 116 | Y124: 18 | Z124: 0.18
X125: 117 | Y125: 15 | Z125: 0.15
X126: 118 | Y126: 23 | Z126: 0.23
X127: 119 | Y127: 20 | Z127: 0.2
X128: 120 | Y128: 15 | Z128: 0.15
X129: 121 | Y129: 20 | Z129: 0.2
X130: 122 | Y130: 14 | Z130: 0.14
X131: 123 | Y131: 16 | Z131: 0.16
X132: 124 | Y132: 9 | Z132: 0.09
X133: 125 | Y133: 21 | Z133: 0.21
X134: 126 | Y134: 24 | Z134: 0.24
X135: 127 | Y135: 15 | Z135: 0.15
X136: 128 | Y136: 15 | Z136: 0.15
X137: 129 | Y137: 22 | Z137: 0.22
X138: 130 | Y138: 12 | Z138: 0.12
X139: 131 | Y139: 17 | Z139: 0.17
X140: 132 | Y140: 17 | Z140: 0.17
X141: 133 | Y141: 17 | Z141: 0.17
X142: 134 | Y142: 15 | Z142: 0.15
X143: 135 | Y143: 17 | Z143: 0.17
X144: 136 | Y144: 20 | Z144: 0.2
X145: 137 | Y145: 11 | Z145: 0.11
X146: 138 | Y146: 15 | Z146: 0.15
X147: 139 | Y147: 17 | Z147: 0.17
X148: 140 | Y148: 21 | Z148: 0.21
X149: 141 | Y149: 23 | Z149: 0.23
X150: 142 | Y150: 21 | Z150: 0.21
X151: 143 | Y151: 11 | Z151: 0.11
X152: 144 | Y152: 21 | Z152: 0.21
X153: 145 | Y153: 22 | Z153: 0.22
X154: 146 | Y154: 25 | Z154: 0.25
X155: 147 | Y155: 14 | Z155: 0.14
X156: 148 | Y156: 17 | Z156: 0.17
X157: 149 | Y157: 23 | Z157: 0.23
X158: 150 | Y158: 11 | Z158: 0.11
X159: 151 | Y159: 12 | Z159: 0.12
X160: 152 | Y160: 19 | Z160: 0.19
X161: 153 | Y161: 17 | Z161: 0.17
X162: 154 | Y162: 18 | Z162: 0.18
X163: 155 | Y163: 23 | Z163: 0.23
X164: 156 | Y164: 15 | Z164: 0.15
X165: 157 | Y165: 24 | Z165: 0.24
X166: 158 | Y166: 17 | Z166: 0.17
X167: 159 | Y167: 11 | Z167: 0.11
X168: 160 | Y168: 11 | Z168: 0.11
X169: 161 | Y169: 16 | Z169: 0.16
X170: 162 | Y170: 15 | Z170: 0.15
X171: 163 | Y171: 17 | Z171: 0.17
X172: 164 | Y172: 15 | Z172: 0.15
X173: 165 | Y173: 19 | Z173: 0.19
X174: 166 | Y174: 11 | Z174: 0.11
X175: 167 | Y175: 18 | Z175: 0.18
X176: 168 | Y176: 18 | Z176: 0.18
X177: 169 | Y177: 16 | Z177: 0.16
X178: 170 | Y178: 19 | Z178: 0.19
X179: 171 | Y179: 16 | Z179: 0.16
X180: 172 | Y180: 17 | Z180: 0.17
X181: 173 | Y181: 17 | Z181: 0.17
X182: 174 | Y182: 19 | Z182: 0.19
X183: 175 | Y183: 15 | Z183: 0.15
X184: 176 | Y184: 26 | Z184: 0.26
X185: 177 | Y185: 14 | Z185: 0.14
X186: 178 | Y186: 10 | Z186: 0.1
X187: 179 | Y187: 15 | Z187: 0.15
X188: 180 | Y188: 15 | Z188: 0.15
X189: 181 | Y189: 10 | Z189: 0.1
X190: 182 | Y190: 13 | Z190: 0.13
X191: 183 | Y191: 15 | Z191: 0.15
X192: 184 | Y192: 23 | Z192: 0.23
X193: 185 | Y193: 16 | Z193: 0.16
X194: 186 | Y194: 21 | Z194: 0.21
X195: 187 | Y195: 7 | Z195: 0.07
X196: 188 | Y196: 15 | Z196: 0.15
X197: 189 | Y197: 18 | Z197: 0.18
X198: 190 | Y198: 18 | Z198: 0.18
X199: 191 | Y199: 11 | Z199: 0.11
X200: 192 | Y200: 20 | Z200: 0.2
X201: 193 | Y201: 19 | Z201: 0.19
... 307 more rows

Sheet 1000
S2: Have cursor in BLUE cell
S3: before hitting this button!
A4: roll | B4: U[0,1] | C4: outcome
A5: 1 | B5: =RAND() -> 0.9727809615 | C5: =INT(B5*6+1) -> 6 | P5: Results of experiments
A6: 2 | B6: =RAND() -> 0.4589221508 | C6: =INT(B6*6+1) -> 3 | P6: estimated probability of rolling a 4: | Y6: average | Z6: =AVERAGE(Z9:Z508) -> 0.165588
A7: 3 | B7: 0.3416711937 | C7: 3 | Y7: std. error | Z7: =STDEV(Z9:Z508) -> 0.01205391429
A8: 4 | B8: 0.0328388142 | C8: 1 | E8: outcome | F8: count | G8: rel freq. | Q8: count | R8: est. prob | S8: sq error | U8: true
A9: 5 | B9: 0.7747318563 | C9: 5 | E9: 1 | F9: =FREQUENCY(C5:C1004,E9:E14) -> 159 | G9: =F9/$F$16 -> 0.159 | P9: 1 | Q9: 146 | R9: 0.146 | S9: =(R9-U9)^2 -> 0.0004271111111 | U9: =1/6 -> 0.1666666667 | X9: 1 | Y9: 169 | Z9: 0.169
A10: 6 | B10: 0.1575874203 | C10: 1 | E10: 2 | F10: 161 | G10: 0.161 | P10: 2 | Q10: 160 | R10: 0.16 | S10: =(R10-U10)^2 -> 4.444444444e-05 | U10: =1/6 -> 0.1666666667 | X10: 2 | Y10: 157 | Z10: 0.157
A11: 7 | B11: 0.3459764848 | C11: 3 | E11: 3 | F11: 165 | G11: 0.165 | P11: 3 | Q11: 172 | R11: 0.172 | S11: 2.844444444e-05 | U11: 0.1666666667 | X11: 3 | Y11: 177 | Z11: 0.177
A12: 8 | B12: 0.5560924586 | C12: 4 | E12: 4 | F12: 188 | G12: 0.188 | P12: 4 | Q12: 176 | R12: 0.176 | S12: 8.711111111e-05 | U12: 0.1666666667 | X12: 4 | Y12: 168 | Z12: 0.168
A13: 9 | B13: 0.7192598203 | C13: 5 | E13: 5 | F13: 162 | G13: 0.162 | P13: 5 | Q13: 183 | R13: 0.183 | S13: 0.0002667777778 | U13: 0.1666666667 | X13: 5 | Y13: 178 | Z13: 0.178
A14: 10 | B14: 0.9445383181 | C14: 6 | E14: 6 | F14: 165 | G14: 0.165 | P14: 6 | Q14: 151 | R14: 0.151 | S14: 0.0002454444444 | U14: 0.1666666667 | X14: 6 | Y14: 161 | Z14: 0.161
A15: 11 | B15: 0.2549590295 | C15: 2 | P15: 7 | Q15: 171 | R15: 0.171 | S15: 1.877777778e-05 | U15: 0.1666666667 | X15: 7 | Y15: 176 | Z15: 0.176
A16: 12 | B16: 0.7409963344 | C16: 5 | F16: =SUM(F9:F14) -> 1000 | G16: =SUM(G9:G14) -> 1 | P16: 8 | Q16: 177 | R16: 0.177 | S16: 0.0001067777778 | U16: 0.1666666667 | X16: 8 | Y16: 193 | Z16: 0.193
A17: 13 | B17: 0.546721169 | C17: 4 | P17: 9 | Q17: 184 | R17: 0.184 | S17: 0.0003004444444 | U17: 0.1666666667 | X17: 9 | Y17: 162 | Z17: 0.162
A18: 14 | B18: 0.3037472067 | C18: 2 | P18: 10 | Q18: 168 | R18: 0.168 | S18: 1.777777778e-06 | U18: 0.1666666667 | X18: 10 | Y18: 177 | Z18: 0.177
A19: 15 | B19: 0.6453718371 | C19: 4 | E19: Expected count is | P19: 11 | Q19: 172 | R19: 0.172 | S19: 2.844444444e-05 | U19: 0.1666666667 | X19: 11 | Y19: 172 | Z19: 0.172
A20: 16 | B20: 0.8224670311 | C20: 5 | E20: 1000 * 1/6 = | F20: =1000*1/6 -> 166.6666667 | P20: 12 | Q20: 168 | R20: 0.168 | S20: 1.777777778e-06 | U20: 0.1666666667 | X20: 12 | Y20: 165 | Z20: 0.165
A21: 17 | B21: 0.4739228538 | C21: 3 | P21: 13 | Q21: 172 | R21: 0.172 | S21: 2.844444444e-05 | U21: 0.1666666667 | X21: 13 | Y21: 187 | Z21: 0.187
A22: 18 | B22: 0.03378872302 | C22: 1 | E22: distribution mean of X | P22: 14 | Q22: 178 | R22: 0.178 | S22: 0.0001284444444 | U22: 0.1666666667 | X22: 14 | Y22: 160 | Z22: 0.16
A23: 19 | B23: 0.8946361277 | C23: 6 | E23: 1/6*(1+2+3+4+5+6)= | F23: 3.5 | P23: 15 | Q23: 159 | R23: 0.159 | S23: 5.877777778e-05 | U23: 0.1666666667 | X23: 15 | Y23: 160 | Z23: 0.16
A24: 20 | B24: 0.9132621865 | C24: 6 | P24: 16 | Q24: 159 | R24: 0.159 | S24: 5.877777778e-05 | U24: 0.1666666667 | X24: 16 | Y24: 175 | Z24: 0.175
A25: 21 | B25: 0.7738313621 | C25: 5 | E25: Observed mean of X | P25: 17 | Q25: 171 | R25: 0.171 | S25: 1.877777778e-05 | U25: 0.1666666667 | X25: 17 | Y25: 182 | Z25: 0.182
A26: 22 | B26: 0.9086621222 | C26: 6 | F26: =E9*G9+E10*G10+E11*G11+E12*G12+E13*G13+E14*G14 -> 3.528 | P26: 18 | Q26: 193 | R26: 0.193 | S26: 0.0006934444444 | U26: 0.1666666667 | X26: 18 | Y26: 163 | Z26: 0.163
A27: 23 | B27: 0.9573368346 | C27: 6 | P27: 19 | Q27: 177 | R27: 0.177 | S27: 0.0001067777778 | U27: 0.1666666667 | X27: 19 | Y27: 166 | Z27: 0.166
A28: 24 | B28: 0.1408527504 | C28: 1 | P28: 20 | Q28: 184 | R28: 0.184 | S28: 0.0003004444444 | U28: 0.1666666667 | X28: 20 | Y28: 165 | Z28: 0.165
A29: 25 | B29: 0.5497605803 | C29: 4 | X29: 21 | Y29: 171 | Z29: 0.171
A30: 26 | B30: 0.1414270461 | C30: 1 | Q30: average | R30: =AVERAGE(R9:R28) -> 0.17105 | S30: true = | T30: =1/6 -> 0.1666666667 | X30: 22 | Y30: 172 | Z30: 0.172
A31: 27 | B31: 0.2475393003 | C31: 2 | Q31: std. error | R31: =SQRT(SUM(S9:S28)/($P$28-1)) -> 0.01246304479 | X31: 23 | Y31: 177 | Z31: 0.177
A32: 28 | B32: 0.8031730331 | C32: 5 | X32: 24 | Y32: 141 | Z32: 0.141
A33: 29 | B33: 0.2929233724 | C33: 2 | X33: 25 | Y33: 155 | Z33: 0.155
A34: 30 | B34: 0.2292100598 | C34: 2 | X34: 26 | Y34: 184 | Z34: 0.184
A35: 31 | B35: 0.3734308195 | C35: 3 | X35: 27 | Y35: 146 | Z35: 0.146
A36: 32 | B36: 0.9548319734 | C36: 6 | X36: 28 | Y36: 162 | Z36: 0.162
A37: 33 | B37: 0.8881970357 | C37: 6 | X37: 29 | Y37: 148 | Z37: 0.148
A38: 34 | B38: 0.6003340613 | C38: 4 | X38: 30 | Y38: 141 | Z38: 0.141
A39: 35 | B39: 0.7759492353 | C39: 5 | X39: 31 | Y39: 150 | Z39: 0.15
A40: 36 | B40: 0.6470970328 | C40: 4 | X40: 32 | Y40: 155 | Z40: 0.155
A41: 37 | B41: 0.2856574229 | C41: 2 | X41: 33 | Y41: 155 | Z41: 0.155
A42: 38 | B42: 0.3598509685 | C42: 3 | X42: 34 | Y42: 167 | Z42: 0.167
A43: 39 | B43: 0.7682465021 | C43: 5 | X43: 35 | Y43: 169 | Z43: 0.169
A44: 40 | B44: 0.6548980182 | C44: 4 | X44: 36 | Y44: 153 | Z44: 0.153
A45: 41 | B45: 0.6780108626 | C45: 5 | X45: 37 | Y45: 169 | Z45: 0.169
A46: 42 | B46: 0.8716845311 | C46: 6 | X46: 38 | Y46: 166 | Z46: 0.166
A47: 43 | B47: 0.6785683578 | C47: 5 | X47: 39 | Y47: 179 | Z47: 0.179
A48: 44 | B48: 0.07417827366 | C48: 1 | X48: 40 | Y48: 189 | Z48: 0.189
A49: 45 | B49: 0.631546568 | C49: 4 | X49: 41 | Y49: 182 | Z49: 0.182
A50: 46 | B50: 0.1431116329 | C50: 1 | X50: 42 | Y50: 182 | Z50: 0.182
A51: 47 | B51: 0.8749312522 | C51: 6 | X51: 43 | Y51: 176 | Z51: 0.176
A52: 48 | B52: 0.8405374948 | C52: 6 | X52: 44 | Y52: 163 | Z52: 0.163
A53: 49 | B53: 0.02856671459 | C53: 1 | X53: 45 | Y53: 166 | Z53: 0.166
A54: 50 | B54: 0.5310318938 | C54: 4 | X54: 46 | Y54: 175 | Z54: 0.175
A55: 51 | B55: 0.4370537591 | C55: 3 | X55: 47 | Y55: 171 | Z55: 0.171
A56: 52 | B56: 0.9064440942 | C56: 6 | X56: 48 | Y56: 169 | Z56: 0.169
A57: 53 | B57: 0.365580068 | C57: 3 | X57: 49 | Y57: 171 | Z57: 0.171
A58: 54 | B58: 0.5609660797 | C58: 4 | X58: 50 | Y58: 159 | Z58: 0.159
A59: 55 | B59: 0.1881222777 | C59: 2 | X59: 51 | Y59: 186 | Z59: 0.186
A60: 56 | B60: 0.3126188273 | C60: 2 | X60: 52 | Y60: 170 | Z60: 0.17
A61: 57 | B61: 0.5500154477 | C61: 4 | X61: 53 | Y61: 148 | Z61: 0.148
A62: 58 | B62: 0.6075716632 | C62: 4 | X62: 54 | Y62: 178 | Z62: 0.178
A63: 59 | B63: 0.2138085194 | C63: 2 | X63: 55 | Y63: 184 | Z63: 0.184
A64: 60 | B64: 0.8384054578 | C64: 6 | X64: 56 | Y64: 157 | Z64: 0.157
A65: 61 | B65: 0.6352909715 | C65: 4 | X65: 57 | Y65: 162 | Z65: 0.162
A66: 62 | B66: 0.4603712761 | C66: 3 | X66: 58 | Y66: 154 | Z66: 0.154
A67: 63 | B67: 0.1482441876 | C67: 1 | X67: 59 | Y67: 182 | Z67: 0.182
A68: 64 | B68: 0.7380625177 | C68: 5 | X68: 60 | Y68: 158 | Z68: 0.158
A69: 65 | B69: 0.2358185911 | C69: 2 | X69: 61 | Y69: 146 | Z69: 0.146
A70: 66 | B70: =RAND() -> 0.5088323105 | C70: =INT(B70*6+1) -> 4 | X70: 62 | Y70: 162 | Z70: 0.162
A71: 67 | B71: 0.9258702623 | C71: 6 | X71: 63 | Y71: 167 | Z71: 0.167
A72: 68 | B72: 0.0220575681 | C72: 1 | X72: 64 | Y72: 171 | Z72: 0.171
A73: 69 | B73: 0.0615502478 | C73: 1 | X73: 65 | Y73: 155 | Z73: 0.155
A74: 70 | B74: 0.4896960929 | C74: 3 | X74: 66 | Y74: 170 | Z74: 0.17
A75: 71 | B75: 0.9062346508 | C75: 6 | X75: 67 | Y75: 164 | Z75: 0.164
A76: 72 | B76: 0.8600750034 | C76: 6 | X76: 68 | Y76: 163 | Z76: 0.163
A77: 73 | B77: 0.7296180674 | C77: 5 | X77: 69 | Y77: 175 | Z77: 0.175
A78: 74 | B78: 0.7184832313 | C78: 5 | X78: 70 | Y78: 147 | Z78: 0.147
A79: 75 | B79: 0.7846808402 | C79: 5 | X79: 71 | Y79: 161 | Z79: 0.161
A80: 76 | B80: 0.7331473394 | C80: 5 | X80: 72 | Y80: 175 | Z80: 0.175
A81: 77 | B81: 0.4014327751 | C81: 3 | X81: 73 | Y81: 163 | Z81: 0.163
A82: 78 | B82: 0.7344753555 | C82: 5 | X82: 74 | Y82: 145 | Z82: 0.145
A83: 79 | B83: 0.4425587185 | C83: 3 | X83: 75 | Y83: 133 | Z83: 0.133
A84: 80 | B84: 0.8246811355 | C84: 5 | X84: 76 | Y84: 171 | Z84: 0.171
A85: 81 | B85: 0.5874586907 | C85: 4 | X85: 77 | Y85: 157 | Z85: 0.157
A86: 82 | B86: 0.1038160253 | C86: 1 | X86: 78 | Y86: 168 | Z86: 0.168
A87: 83 | B87: 0.2949092951 | C87: 2 | X87: 79 | Y87: 158 | Z87: 0.158
A88: 84 | B88: 0.3225897109 | C88: 2 | X88: 80 | Y88: 169 | Z88: 0.169
A89: 85 | B89: 0.4828981037 | C89: 3 | X89: 81 | Y89: 162 | Z89: 0.162
A90: 86 | B90: 0.123527155 | C90: 1 | X90: 82 | Y90: 165 | Z90: 0.165
A91: 87 | B91: 0.5893779954 | C91: 4 | X91: 83 | Y91: 178 | Z91: 0.178
A92: 88 | B92: 0.7571860929 | C92: 5 | X92: 84 | Y92: 179 | Z92: 0.179
A93: 89 | B93: 0.9088800126 | C93: 6 | X93: 85 | Y93: 170 | Z93: 0.17
A94: 90 | B94: 0.6514386166 | C94: 4 | X94: 86 | Y94: 167 | Z94: 0.167
A95: 91 | B95: 0.007284484584 | C95: 1 | X95: 87 | Y95: 150 | Z95: 0.15
A96: 92 | B96: 0.7323976851 | C96: 5 | X96: 88 | Y96: 157 | Z96: 0.157
A97: 93 | B97: 0.7242808792 | C97: 5 | X97: 89 | Y97: 151 | Z97: 0.151
A98: 94 | B98: 0.3784398788 | C98: 3 | X98: 90 | Y98: 154 | Z98: 0.154
A99: 95 | B99: 0.6668385132 | C99: 5 | X99: 91 | Y99: 171 | Z99: 0.171
A100: 96 | B100: 0.6028511598 | C100: 4 | X100: 92 | Y100: 187 | Z100: 0.187
A101: 97 | B101: 0.1152176068 | C101: 1 | X101: 93 | Y101: 151 | Z101: 0.151
A102: 98 | B102: 0.6489710542 | C102: 4 | X102: 94 | Y102: 156 | Z102: 0.156
A103: 99 | B103: 0.3615174235 | C103: 3 | X103: 95 | Y103: 160 | Z103: 0.16
A104: 100 | B104: 0.6963278783 | C104: 5 | X104: 96 | Y104: 173 | Z104: 0.173
A105: 101 | B105: 0.5809395474 | C105: 4 | X105: 97 | Y105: 174 | Z105: 0.174
A106: 102 | B106: 0.1215195424 | C106: 1 | X106: 98 | Y106: 178 | Z106: 0.178
A107: 103 | B107: 0.9832797873 | C107: 6 | X107: 99 | Y107: 161 | Z107: 0.161
A108: 104 | B108: 0.0342548029 | C108: 1 | X108: 100 | Y108: 158 | Z108: 0.158
A109: 105 | B109: 0.04236745737 | C109: 1 | X109: 101 | Y109: 173 | Z109: 0.173
A110: 106 | B110: 0.01839287474 | C110: 1 | X110: 102 | Y110: 190 | Z110: 0.19
A111: 107 | B111: 0.4001584174 | C111: 3 | X111: 103 | Y111: 173 | Z111: 0.173
A112: 108 | B112: 0.6154975919 | C112: 4 | X112: 104 | Y112: 160 | Z112: 0.16
A113: 109 | B113: 0.7065051578 | C113: 5 | X113: 105 | Y113: 156 | Z113: 0.156
A114: 110 | B114: 0.5083155932 | C114: 4 | X114: 106 | Y114: 168 | Z114: 0.168
A115: 111 | B115: 0.9182956615 | C115: 6 | X115: 107 | Y115: 153 | Z115: 0.153
A116: 112 | B116: 0.5681203784 | C116: 4 | X116: 108 | Y116: 145 | Z116: 0.145
A117: 113 | B117: 0.302562044 | C117: 2 | X117: 109 | Y117: 160 | Z117: 0.16
A118: 114 | B118: 0.07955674063 | C118: 1 | X118: 110 | Y118: 182 | Z118: 0.182
A119: 115 | B119: 0.8043448691 | C119: 5 | X119: 111 | Y119: 166 | Z119: 0.166
A120: 116 | B120: 0.9189100513 | C120: 6 | X120: 112 | Y120: 155 | Z120: 0.155
A121: 117 | B121: 0.1346710193 | C121: 1 | X121: 113 | Y121: 174 | Z121: 0.174
A122: 118 | B122: 0.4261194734 | C122: 3 | X122: 114 | Y122: 162 | Z122: 0.162
A123: 119 | B123: 0.47369497 | C123: 3 | X123: 115 | Y123: 173 | Z123: 0.173
A124: 120 | B124: 0.02590362889 | C124: 1 | X124: 116 | Y124: 147 | Z124: 0.147
A125: 121 | B125: 0.06570852547 | C125: 1 | X125: 117 | Y125: 173 | Z125: 0.173
A126: 122 | B126: 0.1178645622 | C126: 1 | X126: 118 | Y126: 154 | Z126: 0.154
A127: 123 | B127: 0.7373386441 | C127: 5 | X127: 119 | Y127: 164 | Z127: 0.164
A128: 124 | B128: 0.9285462368 | C128: 6 | X128: 120 | Y128: 156 | Z128: 0.156
A129: 125 | B129: 0.5768227683 | C129: 4 | X129: 121 | Y129: 149 | Z129: 0.149
A130: 126 | B130: 0.8775389819 | C130: 6 | X130: 122 | Y130: 163 | Z130: 0.163
A131: 127 | B131: 0.408303756 | C131: 3 | X131: 123 | Y131: 166 | Z131: 0.166
A132: 128 | B132: 0.2953932661 | C132: 2 | X132: 124 | Y132: 170 | Z132: 0.17
A133: 129 | B133: 0.5585814982 | C133: 4 | X133: 125 | Y133: 175 | Z133: 0.175
A134: 130 | B134: =RAND() -> 0.9578869799 | C134: =INT(B134*6+1) -> 6 | X134: 126 | Y134: 169 | Z134: 0.169
A135: 131 | B135: 0.5476521722 | C135: 4 | X135: 127 | Y135: 192 | Z135: 0.192
A136: 132 | B136: 0.7066815802 | C136: 5 | X136: 128 | Y136: 182 | Z136: 0.182
A137: 133 | B137: 0.08310043625 | C137: 1 | X137: 129 | Y137: 180 | Z137: 0.18
A138: 134 | B138: 0.5290755397 | C138: 4 | X138: 130 | Y138: 175 | Z138: 0.175
A139: 135 | B139: 0.7080158948 | C139: 5 | X139: 131 | Y139: 152 | Z139: 0.152
A140: 136 | B140: 0.2068118173 | C140: 2 | X140: 132 | Y140: 187 | Z140: 0.187
A141: 137 | B141: 0.08138793709 | C141: 1 | X141: 133 | Y141: 170 | Z141: 0.17
A142: 138 | B142: 0.7312348196 | C142: 5 | X142: 134 | Y142: 176 | Z142: 0.176
A143: 139 | B143: 0.9747135986 | C143: 6 | X143: 135 | Y143: 146 | Z143: 0.146
A144: 140 | B144: 0.6544456508 | C144: 4 | X144: 136 | Y144: 147 | Z144: 0.147
A145: 141 | B145: 0.4108196838 | C145: 3 | X145: 137 | Y145: 156 | Z145: 0.156
A146: 142 | B146: 0.4813398788 | C146: 3 | X146: 138 | Y146: 156 | Z146: 0.156
A147: 143 | B147: 0.2244928134 | C147: 2 | X147: 139 | Y147: 162 | Z147: 0.162
A148: 144 | B148: 0.1511060594 | C148: 1 | X148: 140 | Y148: 159 | Z148: 0.159
A149: 145 | B149: 0.09893170219 | C149: 1 | X149: 141 | Y149: 159 | Z149: 0.159
A150: 146 | B150: 0.5134058279 | C150: 4 | X150: 142 | Y150: 165 | Z150: 0.165
A151: 147 | B151: 0.649839023 | C151: 4 | X151: 143 | Y151: 143 | Z151: 0.143
A152: 148 | B152: 0.9684472463 | C152: 6 | X152: 144 | Y152: 151 | Z152: 0.151
A153: 149 | B153: 0.9295796469 | C153: 6 | X153: 145 | Y153: 158 | Z153: 0.158
A154: 150 | B154: 0.3785428688 | C154: 3 | X154: 146 | Y154: 144 | Z154: 0.144
A155: 151 | B155: 0.2090187472 | C155: 2 | X155: 147 | Y155: 175 | Z155: 0.175
A156: 152 | B156: 0.4205589252 | C156: 3 | X156: 148 | Y156: 164 | Z156: 0.164
A157: 153 | B157: 0.7752768654 | C157: 5 | X157: 149 | Y157: 181 | Z157: 0.181
A158: 154 | B158: 0.9625877426 | C158: 6 | X158: 150 | Y158: 185 | Z158: 0.185
A159: 155 | B159: 0.2673535121 | C159: 2 | X159: 151 | Y159: 165 | Z159: 0.165
A160: 156 | B160: 0.4897643057 | C160: 3 | X160: 152 | Y160: 165 | Z160: 0.165
A161: 157 | B161: 0.9885107781 | C161: 6 | X161: 153 | Y161: 185 | Z161: 0.185
A162: 158 | B162: 0.4864756142 | C162: 3 | X162: 154 | Y162: 162 | Z162: 0.162
A163: 159 | B163: 0.6523105093 | C163: 4 | X163: 155 | Y163: 188 | Z163: 0.188
A164: 160 | B164: 0.7875906808 | C164: 5 | X164: 156 | Y164: 158 | Z164: 0.158
A165: 161 | B165: 0.07367231234 | C165: 1 | X165: 157 | Y165: 173 | Z165: 0.173
A166: 162 | B166: 0.6775178572 | C166: 5 | X166: 158 | Y166: 178 | Z166: 0.178
A167: 163 | B167: 0.5555520726 | C167: 4 | X167: 159 | Y167: 191 | Z167: 0.191
A168: 164 | B168: 0.5141481093 | C168: 4 | X168: 160 | Y168: 174 | Z168: 0.174
A169: 165 | B169: 0.4743040221 | C169: 3 | X169: 161 | Y169: 147 | Z169: 0.147
A170: 166 | B170: 0.4047683241 | C170: 3 | X170: 162 | Y170: 171 | Z170: 0.171
A171: 167 | B171: 0.851763886 | C171: 6 | X171: 163 | Y171: 163 | Z171: 0.163
A172: 168 | B172: 0.4989271344 | C172: 3 | X172: 164 | Y172: 174 | Z172: 0.174
A173: 169 | B173: 0.8007078488 | C173: 5 | X173: 165 | Y173: 154 | Z173: 0.154
A174: 170 | B174: 0.2982492529 | C174: 2 | X174: 166 | Y174: 169 | Z174: 0.169
A175: 171 | B175: 0.8007902273 | C175: 5 | X175: 167 | Y175: 172 | Z175: 0.172
A176: 172 | B176: 0.2804283206 | C176: 2 | X176: 168 | Y176: 166 | Z176: 0.166
A177: 173 | B177: 0.8078622015 | C177: 5 | X177: 169 | Y177: 162 | Z177: 0.162
A178: 174 | B178: 0.4441934817 | C178: 3 | X178: 170 | Y178: 157 | Z178: 0.157
A179: 175 | B179: 0.879365925 | C179: 6 | X179: 171 | Y179: 152 | Z179: 0.152
A180: 176 | B180: 0.6693235869 | C180: 5 | X180: 172 | Y180: 184 | Z180: 0.184
A181: 177 | B181: 0.5877757736 | C181: 4 | X181: 173 | Y181: 193 | Z181: 0.193
A182: 178 | B182: 0.9806897693 | C182: 6 | X182: 174 | Y182: 163 | Z182: 0.163
A183: 179 | B183: 0.4331467594 | C183: 3 | X183: 175 | Y183: 176 | Z183: 0.176
A184: 180 | B184: 0.6158336519 | C184: 4 | X184: 176 | Y184: 168 | Z184: 0.168
A185: 181 | B185: 0.2086830659 | C185: 2 | X185: 177 | Y185: 167 | Z185: 0.167
A186: 182 | B186: 0.01255530634 | C186: 1 | X186: 178 | Y186: 176 | Z186: 0.176
A187: 183 | B187: 0.6825242093 | C187: 5 | X187: 179 | Y187: 163 | Z187: 0.163
A188: 184 | B188: 0.4088898204 | C188: 3 | X188: 180 | Y188: 175 | Z188: 0.175
A189: 185 | B189: 0.9265413872 | C189: 6 | X189: 181 | Y189: 184 | Z189: 0.184
A190: 186 | B190: 0.51313211 | C190: 4 | X190: 182 | Y190: 133 | Z190: 0.133
A191: 187 | B191: 0.1663053854 | C191: 1 | X191: 183 | Y191: 150 | Z191: 0.15
A192: 188 | B192: 0.04303813599 | C192: 1 | X192: 184 | Y192: 178 | Z192: 0.178
A193: 189 | B193: 0.4807347178 | C193: 3 | X193: 185 | Y193: 169 | Z193: 0.169
A194: 190 | B194: 0.864312152 | C194: 6 | X194: 186 | Y194: 175 | Z194: 0.175
A195: 191 | B195: 0.2396605363 | C195: 2 | X195: 187 | Y195: 167 | Z195: 0.167
A196: 192 | B196: 0.9580518272 | C196: 6 | X196: 188 | Y196: 167 | Z196: 0.167
A197: 193 | B197: 0.8337560533 | C197: 6 | X197: 189 | Y197: 165 | Z197: 0.165
A198: 194 | B198: =RAND() -> 0.5249194545 | C198: =INT(B198*6+1) -> 4 | X198: 190 | Y198: 177 | Z198: 0.177
A199: 195 | B199: 0.7949244312 | C199: 5 | X199: 191 | Y199: 168 | Z199: 0.168
A200: 196 | B200: 0.600081297 | C200: 4 | X200: 192 | Y200: 164 | Z200: 0.164
A201: 197 | B201: 0.3807772579 | C201: 3 | X201: 193 | Y201: 167 | Z201: 0.167
... 803 more rows

Sheet 10000
S2: Have cursor in BLUE cell
S3: before hitting this button!
A4: roll | B4: U[0,1] | C4: outcome
A5: 1 | B5: =RAND() -> 0.5144660142 | C5: =INT(B5*6+1) -> 4 | P5: Results of experiments | X5: =RANDBETWEEN(1,6) -> 5 | Y5: 6 | Z5: 4 | AA5: 1 | AB5: 1 | AC5: 3 | AD5: 2 | AE5: 4 | AF5: 1 | AG5: 6
A6: 2 | B6: =RAND() -> 0.3446044 | C6: =INT(B6*6+1) -> 3 | P6: estimated probability of rolling a 4: | X6: 3 | Y6: 3 | Z6: 2 | AA6: 2 | AB6: 3 | AC6: 2 | AD6: 6 | AE6: 1 | AF6: 3 | AG6: 1 | AK6: average | AL6: =AVERAGE(AL9:AL508) -> 0.166714
A7: 3 | B7: 0.5884096171 | C7: 4 | X7: 4 | Y7: 6 | Z7: 5 | AA7: 6 | AB7: 3 | AC7: 5 | AD7: 5 | AE7: 5 | AF7: 3 | AG7: 3 | AK7: std. error | AL7: =STDEV(AL9:AL508) -> 0.003648092812
A8: 4 | B8: 0.2605313306 | C8: 2 | E8: outcome | F8: count | G8: rel freq. | Q8: count | R8: est. prob | S8: sq error | U8: true | X8: 2 | Y8: 1 | Z8: 2 | AA8: 5 | AB8: 5 | AC8: 1 | AD8: 4 | AE8: 3 | AF8: 5 | AG8: 4
A9: 5 | B9: 0.8427742645 | C9: 6 | E9: 1 | F9: =FREQUENCY(X5:AG1004,E9:E14) -> 1634 | G9: =F9/$F$16 -> 0.1634 | P9: 1 | Q9: 1686 | R9: 0.1686 | S9: =(R9-U9)^2 -> 3.737777778e-06 | U9: =1/6 -> 0.1666666667 | X9: 6 | Y9: 2 | Z9: 1 | AA9: 5 | AB9: 4 | AC9: 6 | AD9: 1 | AE9: 2 | AF9: 2 | AG9: 5 | AJ9: 1 | AK9: 1652 | AL9: 0.1652
A10: 6 | B10: 0.6933574887 | C10: 5 | E10: 2 | F10: 1636 | G10: 0.1636 | P10: 2 | Q10: 1677 | R10: 0.1677 | S10: =(R10-U10)^2 -> 1.067777778e-06 | U10: =1/6 -> 0.1666666667 | X10: 4 | Y10: 1 | Z10: 4 | AA10: 5 | AB10: 6 | AC10: 3 | AD10: 4 | AE10: 3 | AF10: 5 | AG10: 5 | AJ10: 2 | AK10: 1594 | AL10: 0.1594
A11: 7 | B11: 0.2626242307 | C11: 2 | E11: 3 | F11: 1638 | G11: 0.1638 | P11: 3 | Q11: 1725 | R11: 0.1725 | S11: 3.402777778e-05 | U11: 0.1666666667 | X11: 2 | Y11: 1 | Z11: 5 | AA11: 2 | AB11: 6 | AC11: 3 | AD11: 6 | AE11: 6 | AF11: 2 | AG11: 6 | AJ11: 3 | AK11: 1629 | AL11: 0.1629
A12: 8 | B12: 0.632200825 | C12: 4 | E12: 4 | F12: 1649 | G12: 0.1649 | P12: 4 | Q12: 1667 | R12: 0.1667 | S12: 1.111111111e-09 | U12: 0.1666666667 | X12: 2 | Y12: 1 | Z12: 5 | AA12: 1 | AB12: 1 | AC12: 4 | AD12: 2 | AE12: 3 | AF12: 2 | AG12: 5 | AJ12: 4 | AK12: 1729 | AL12: 0.1729
A13: 9 | B13: 0.6986177714 | C13: 5 | E13: 5 | F13: 1746 | G13: 0.1746 | P13: 5 | Q13: 1678 | R13: 0.1678 | S13: 1.284444444e-06 | U13: 0.1666666667 | X13: 5 | Y13: 6 | Z13: 4 | AA13: 2 | AB13: 6 | AC13: 4 | AD13: 5 | AE13: 3 | AF13: 5 | AG13: 2 | AJ13: 5 | AK13: 1666 | AL13: 0.1666
A14: 10 | B14: 0.9307530172 | C14: 6 | E14: 6 | F14: 1697 | G14: 0.1697 | P14: 6 | Q14: 1735 | R14: 0.1735 | S14: 4.669444444e-05 | U14: 0.1666666667 | X14: 5 | Y14: 3 | Z14: 3 | AA14: 5 | AB14: 6 | AC14: 1 | AD14: 6 | AE14: 6 | AF14: 1 | AG14: 3 | AJ14: 6 | AK14: 1629 | AL14: 0.1629
A15: 11 | B15: 0.9376656194 | C15: 6 | P15: 7 | Q15: 1729 | R15: 0.1729 | S15: 3.885444444e-05 | U15: 0.1666666667 | X15: 2 | Y15: 2 | Z15: 6 | AA15: 6 | AB15: 2 | AC15: 2 | AD15: 3 | AE15: 1 | AF15: 5 | AG15: 1 | AJ15: 7 | AK15: 1657 | AL15: 0.1657
A16: 12 | B16: 0.7794787442 | C16: 5 | F16: =SUM(F9:F14) -> 10000 | G16: =SUM(G9:G14) -> 1 | P16: 8 | Q16: 1608 | R16: 0.1608 | S16: 3.441777778e-05 | U16: 0.1666666667 | X16: 1 | Y16: 6 | Z16: 3 | AA16: 4 | AB16: 6 | AC16: 2 | AD16: 4 | AE16: 3 | AF16: 1 | AG16: 3 | AJ16: 8 | AK16: 1638 | AL16: 0.1638
A17: 13 | B17: 0.6219963738 | C17: 4 | P17: 9 | Q17: 1666 | R17: 0.1666 | S17: 4.444444444e-09 | U17: 0.1666666667 | X17: 5 | Y17: 3 | Z17: 6 | AA17: 1 | AB17: 3 | AC17: 1 | AD17: 2 | AE17: 3 | AF17: 3 | AG17: 3 | AJ17: 9 | AK17: 1696 | AL17: 0.1696
A18: 14 | B18: 0.3451347415 | C18: 3 | P18: 10 | Q18: 1669 | R18: 0.1669 | S18: 5.444444444e-08 | U18: 0.1666666667 | X18: 4 | Y18: 5 | Z18: 3 | AA18: 3 | AB18: 5 | AC18: 6 | AD18: 3 | AE18: 1 | AF18: 3 | AG18: 1 | AJ18: 10 | AK18: 1733 | AL18: 0.1733
A19: 15 | B19: 0.09205909091 | C19: 1 | E19: Expected count is | P19: 11 | Q19: 1628 | R19: 0.1628 | S19: 1.495111111e-05 | U19: 0.1666666667 | X19: 1 | Y19: 4 | Z19: 5 | AA19: 3 | AB19: 1 | AC19: 4 | AD19: 2 | AE19: 6 | AF19: 3 | AG19: 3 | AJ19: 11 | AK19: 1664 | AL19: 0.1664
A20: 16 | B20: 0.7458875417 | C20: 5 | E20: 10000 * 1/6 = | F20: =10000*1/6 -> 1666.666667 | P20: 12 | Q20: 1665 | R20: 0.1665 | S20: 2.777777778e-08 | U20: 0.1666666667 | X20: 6 | Y20: 5 | Z20: 5 | AA20: 4 | AB20: 3 | AC20: 4 | AD20: 4 | AE20: 4 | AF20: 5 | AG20: 2 | AJ20: 12 | AK20: 1723 | AL20: 0.1723
A21: 17 | B21: 0.3584882025 | C21: 3 | P21: 13 | Q21: 1613 | R21: 0.1613 | S21: 2.880111111e-05 | U21: 0.1666666667 | X21: =RANDBETWEEN(1,6) -> 1 | Y21: 6 | Z21: 1 | AA21: 3 | AB21: 5 | AC21: 1 | AD21: 4 | AE21: 5 | AF21: 5 | AG21: 6 | AJ21: 13 | AK21: 1633 | AL21: 0.1633
A22: 18 | B22: 0.7718834141 | C22: 5 | E22: distribution mean of X | P22: 14 | Q22: 1673 | R22: 0.1673 | S22: 4.011111111e-07 | U22: 0.1666666667 | X22: 3 | Y22: 2 | Z22: 5 | AA22: 3 | AB22: 1 | AC22: 2 | AD22: 5 | AE22: 1 | AF22: 1 | AG22: 2 | AJ22: 14 | AK22: 1606 | AL22: 0.1606
A23: 19 | B23: 0.7742982064 | C23: 5 | E23: 1/6*(1+2+3+4+5+6)= | F23: 3.5 | P23: 15 | Q23: 1651 | R23: 0.1651 | S23: 2.454444444e-06 | U23: 0.1666666667 | X23: 3 | Y23: 3 | Z23: 6 | AA23: 6 | AB23: 2 | AC23: 6 | AD23: 3 | AE23: 3 | AF23: 4 | AG23: 6 | AJ23: 15 | AK23: 1664 | AL23: 0.1664
A24: 20 | B24: 0.8521807958 | C24: 6 | P24: 16 | Q24: 1647 | R24: 0.1647 | S24: 3.867777778e-06 | U24: 0.1666666667 | X24: 2 | Y24: 1 | Z24: 5 | AA24: 4 | AB24: 6 | AC24: 5 | AD24: 5 | AE24: 1 | AF24: 4 | AG24: 4 | AJ24: 16 | AK24: 1660 | AL24: 0.166
A25: 21 | B25: 0.4139606647 | C25: 3 | E25: Observed mean of X | P25: 17 | Q25: 1662 | R25: 0.1662 | S25: 2.177777778e-07 | U25: 0.1666666667 | X25: 1 | Y25: 3 | Z25: 5 | AA25: 5 | AB25: 5 | AC25: 6 | AD25: 1 | AE25: 2 | AF25: 5 | AG25: 6 | AJ25: 17 | AK25: 1681 | AL25: 0.1681
A26: 22 | B26: 0.09861285996 | C26: 1 | F26: =E9*G9+E10*G10+E11*G11+E12*G12+E13*G13+E14*G14 -> 3.5328 | P26: 18 | Q26: 1620 | R26: 0.162 | S26: 2.177777778e-05 | U26: 0.1666666667 | X26: 6 | Y26: 6 | Z26: 5 | AA26: 5 | AB26: 2 | AC26: 3 | AD26: 5 | AE26: 3 | AF26: 1 | AG26: 5 | AJ26: 18 | AK26: 1630 | AL26: 0.163
A27: 23 | B27: 0.3279857617 | C27: 2 | P27: 19 | Q27: 1620 | R27: 0.162 | S27: 2.177777778e-05 | U27: 0.1666666667 | X27: 1 | Y27: 4 | Z27: 4 | AA27: 1 | AB27: 5 | AC27: 3 | AD27: 3 | AE27: 5 | AF27: 2 | AG27: 6 | AJ27: 19 | AK27: 1633 | AL27: 0.1633
A28: 24 | B28: 0.7551384063 | C28: 5 | P28: 20 | Q28: 1673 | R28: 0.1673 | S28: 4.011111111e-07 | U28: 0.1666666667 | X28: 1 | Y28: 3 | Z28: 3 | AA28: 4 | AB28: 4 | AC28: 4 | AD28: 1 | AE28: 2 | AF28: 6 | AG28: 6 | AJ28: 20 | AK28: 1688 | AL28: 0.1688
A29: 25 | B29: 0.2100026871 | C29: 2 | X29: 1 | Y29: 6 | Z29: 4 | AA29: 4 | AB29: 2 | AC29: 4 | AD29: 6 | AE29: 3 | AF29: 5 | AG29: 4 | AJ29: 21 | AK29: 1701 | AL29: 0.1701
A30: 26 | B30: 0.7919388256 | C30: 5 | Q30: average | R30: =AVERAGE(R9:R28) -> 0.16646 | S30: true = | T30: =1/6 -> 0.1666666667 | X30: 1 | Y30: 5 | Z30: 3 | AA30: 6 | AB30: 6 | AC30: 4 | AD30: 2 | AE30: 2 | AF30: 2 | AG30: 3 | AJ30: 22 | AK30: 1653 | AL30: 0.1653
A31: 27 | B31: 0.7194814117 | C31: 5 | Q31: std. error | R31: =SQRT(SUM(S9:S28)/($P$28-1)) -> 0.003662198234 | X31: 5 | Y31: 1 | Z31: 6 | AA31: 6 | AB31: 6 | AC31: 5 | AD31: 2 | AE31: 4 | AF31: 2 | AG31: 3 | AJ31: 23 | AK31: 1644 | AL31: 0.1644
A32: 28 | B32: 0.3509141089 | C32: 3 | X32: 2 | Y32: 6 | Z32: 5 | AA32: 5 | AB32: 5 | AC32: 4 | AD32: 3 | AE32: 2 | AF32: 3 | AG32: 6 | AJ32: 24 | AK32: 1657 | AL32: 0.1657
A33: 29 | B33: 0.8605779106 | C33: 6 | X33: 1 | Y33: 4 | Z33: 5 | AA33: 5 | AB33: 3 | AC33: 6 | AD33: 6 | AE33: 6 | AF33: 6 | AG33: 1 | AJ33: 25 | AK33: 1657 | AL33: 0.1657
A34: 30 | B34: 0.1886871229 | C34: 2 | X34: 4 | Y34: 3 | Z34: 5 | AA34: 5 | AB34: 3 | AC34: 2 | AD34: 3 | AE34: 2 | AF34: 4 | AG34: 6 | AJ34: 26 | AK34: 1626 | AL34: 0.1626
A35: 31 | B35: 0.03573196086 | C35: 1 | X35: 3 | Y35: 2 | Z35: 4 | AA35: 5 | AB35: 6 | AC35: 4 | AD35: 6 | AE35: 6 | AF35: 4 | AG35: 5 | AJ35: 27 | AK35: 1703 | AL35: 0.1703
A36: 32 | B36: 0.830390772 | C36: 5 | X36: 1 | Y36: 2 | Z36: 2 | AA36: 2 | AB36: 5 | AC36: 1 | AD36: 2 | AE36: 4 | AF36: 2 | AG36: 5 | AJ36: 28 | AK36: 1666 | AL36: 0.1666
A37: 33 | B37: 0.7916431579 | C37: 5 | X37: =RANDBETWEEN(1,6) -> 6 | Y37: 1 | Z37: 6 | AA37: 1 | AB37: 2 | AC37: 2 | AD37: 4 | AE37: 4 | AF37: 1 | AG37: 4 | AJ37: 29 | AK37: 1670 | AL37: 0.167
A38: 34 | B38: 0.7666565159 | C38: 5 | X38: 4 | Y38: 3 | Z38: 5 | AA38: 1 | AB38: 6 | AC38: 3 | AD38: 5 | AE38: 4 | AF38: 3 | AG38: 4 | AJ38: 30 | AK38: 1620 | AL38: 0.162
A39: 35 | B39: 0.2203384995 | C39: 2 | X39: 1 | Y39: 5 | Z39: 2 | AA39: 3 | AB39: 6 | AC39: 3 | AD39: 1 | AE39: 4 | AF39: 4 | AG39: 2 | AJ39: 31 | AK39: 1736 | AL39: 0.1736
A40: 36 | B40: 0.8035224572 | C40: 5 | X40: 5 | Y40: 1 | Z40: 6 | AA40: 5 | AB40: 2 | AC40: 5 | AD40: 6 | AE40: 4 | AF40: 1 | AG40: 1 | AJ40: 32 | AK40: 1592 | AL40: 0.1592
A41: 37 | B41: 0.7938428919 | C41: 5 | X41: 4 | Y41: 5 | Z41: 2 | AA41: 6 | AB41: 1 | AC41: 1 | AD41: 6 | AE41: 6 | AF41: 5 | AG41: 1 | AJ41: 33 | AK41: 1693 | AL41: 0.1693
A42: 38 | B42: 0.8981844745 | C42: 6 | X42: 5 | Y42: 4 | Z42: 2 | AA42: 5 | AB42: 3 | AC42: 4 | AD42: 4 | AE42: 6 | AF42: 2 | AG42: 4 | AJ42: 34 | AK42: 1702 | AL42: 0.1702
A43: 39 | B43: 0.7591486009 | C43: 5 | X43: 4 | Y43: 1 | Z43: 1 | AA43: 1 | AB43: 5 | AC43: 3 | AD43: 5 | AE43: 5 | AF43: 1 | AG43: 2 | AJ43: 35 | AK43: 1672 | AL43: 0.1672
A44: 40 | B44: 0.1090843793 | C44: 1 | X44: 1 | Y44: 5 | Z44: 1 | AA44: 5 | AB44: 2 | AC44: 4 | AD44: 2 | AE44: 2 | AF44: 6 | AG44: 2 | AJ44: 36 | AK44: 1630 | AL44: 0.163
A45: 41 | B45: 0.5297934591 | C45: 4 | X45: 2 | Y45: 6 | Z45: 6 | AA45: 3 | AB45: 1 | AC45: 2 | AD45: 2 | AE45: 6 | AF45: 1 | AG45: 1 | AJ45: 37 | AK45: 1659 | AL45: 0.1659
A46: 42 | B46: 0.2774995304 | C46: 2 | X46: 6 | Y46: 1 | Z46: 1 | AA46: 1 | AB46: 6 | AC46: 4 | AD46: 2 | AE46: 4 | AF46: 4 | AG46: 5 | AJ46: 38 | AK46: 1676 | AL46: 0.1676
A47: 43 | B47: 0.6282592552 | C47: 4 | X47: 1 | Y47: 5 | Z47: 2 | AA47: 3 | AB47: 6 | AC47: 6 | AD47: 6 | AE47: 1 | AF47: 6 | AG47: 5 | AJ47: 39 | AK47: 1695 | AL47: 0.1695
A48: 44 | B48: 0.5707320595 | C48: 4 | X48: 5 | Y48: 1 | Z48: 1 | AA48: 3 | AB48: 2 | AC48: 5 | AD48: 3 | AE48: 3 | AF48: 4 | AG48: 5 | AJ48: 40 | AK48: 1663 | AL48: 0.1663
A49: 45 | B49: 0.1047328606 | C49: 1 | X49: 6 | Y49: 2 | Z49: 1 | AA49: 3 | AB49: 4 | AC49: 2 | AD49: 5 | AE49: 2 | AF49: 5 | AG49: 3 | AJ49: 41 | AK49: 1673 | AL49: 0.1673
A50: 46 | B50: 0.7839677917 | C50: 5 | X50: 2 | Y50: 4 | Z50: 2 | AA50: 5 | AB50: 1 | AC50: 4 | AD50: 4 | AE50: 3 | AF50: 2 | AG50: 2 | AJ50: 42 | AK50: 1733 | AL50: 0.1733
A51: 47 | B51: 0.9898871468 | C51: 6 | X51: 2 | Y51: 5 | Z51: 2 | AA51: 5 | AB51: 1 | AC51: 6 | AD51: 6 | AE51: 5 | AF51: 5 | AG51: 5 | AJ51: 43 | AK51: 1682 | AL51: 0.1682
A52: 48 | B52: 0.4028592809 | C52: 3 | X52: 4 | Y52: 5 | Z52: 1 | AA52: 4 | AB52: 4 | AC52: 4 | AD52: 5 | AE52: 6 | AF52: 3 | AG52: 2 | AJ52: 44 | AK52: 1658 | AL52: 0.1658
A53: 49 | B53: 0.2825935247 | C53: 2 | X53: =RANDBETWEEN(1,6) -> 3 | Y53: 2 | Z53: 4 | AA53: 1 | AB53: 1 | AC53: 5 | AD53: 5 | AE53: 6 | AF53: 3 | AG53: 1 | AJ53: 45 | AK53: 1665 | AL53: 0.1665
A54: 50 | B54: 0.4931275696 | C54: 3 | X54: 1 | Y54: 6 | Z54: 2 | AA54: 5 | AB54: 6 | AC54: 6 | AD54: 5 | AE54: 6 | AF54: 3 | AG54: 3 | AJ54: 46 | AK54: 1677 | AL54: 0.1677
A55: 51 | B55: 0.8300769852 | C55: 5 | X55: 5 | Y55: 1 | Z55: 6 | AA55: 6 | AB55: 2 | AC55: 2 | AD55: 3 | AE55: 5 | AF55: 4 | AG55: 1 | AJ55: 47 | AK55: 1666 | AL55: 0.1666
A56: 52 | B56: 0.9161561113 | C56: 6 | X56: 2 | Y56: 4 | Z56: 2 | AA56: 5 | AB56: 3 | AC56: 1 | AD56: 2 | AE56: 1 | AF56: 6 | AG56: 6 | AJ56: 48 | AK56: 1641 | AL56: 0.1641
A57: 53 | B57: 0.5478051074 | C57: 4 | X57: 2 | Y57: 4 | Z57: 5 | AA57: 5 | AB57: 3 | AC57: 3 | AD57: 1 | AE57: 5 | AF57: 3 | AG57: 4 | AJ57: 49 | AK57: 1698 | AL57: 0.1698
A58: 54 | B58: 0.5377219748 | C58: 4 | X58: 2 | Y58: 6 | Z58: 6 | AA58: 3 | AB58: 1 | AC58: 1 | AD58: 3 | AE58: 5 | AF58: 2 | AG58: 6 | AJ58: 50 | AK58: 1686 | AL58: 0.1686
A59: 55 | B59: 0.2573147878 | C59: 2 | X59: 1 | Y59: 1 | Z59: 1 | AA59: 1 | AB59: 6 | AC59: 3 | AD59: 3 | AE59: 5 | AF59: 2 | AG59: 1 | AJ59: 51 | AK59: 1634 | AL59: 0.1634
A60: 56 | B60: 0.6136011113 | C60: 4 | X60: 5 | Y60: 6 | Z60: 1 | AA60: 4 | AB60: 3 | AC60: 1 | AD60: 5 | AE60: 5 | AF60: 6 | AG60: 1 | AJ60: 52 | AK60: 1701 | AL60: 0.1701
A61: 57 | B61: 0.1615296427 | C61: 1 | X61: 5 | Y61: 5 | Z61: 5 | AA61: 5 | AB61: 4 | AC61: 1 | AD61: 1 | AE61: 2 | AF61: 5 | AG61: 3 | AJ61: 53 | AK61: 1680 | AL61: 0.168
A62: 58 | B62: 0.5870016856 | C62: 4 | X62: 1 | Y62: 4 | Z62: 6 | AA62: 3 | AB62: 1 | AC62: 2 | AD62: 1 | AE62: 6 | AF62: 5 | AG62: 2 | AJ62: 54 | AK62: 1595 | AL62: 0.1595
A63: 59 | B63: 0.07261028404 | C63: 1 | X63: 3 | Y63: 1 | Z63: 1 | AA63: 1 | AB63: 1 | AC63: 6 | AD63: 2 | AE63: 4 | AF63: 2 | AG63: 4 | AJ63: 55 | AK63: 1634 | AL63: 0.1634
A64: 60 | B64: 0.9423714858 | C64: 6 | X64: 2 | Y64: 2 | Z64: 5 | AA64: 1 | AB64: 1 | AC64: 3 | AD64: 4 | AE64: 4 | AF64: 4 | AG64: 1 | AJ64: 56 | AK64: 1673 | AL64: 0.1673
A65: 61 | B65: 0.3842513911 | C65: 3 | X65: 5 | Y65: 1 | Z65: 3 | AA65: 3 | AB65: 1 | AC65: 4 | AD65: 2 | AE65: 3 | AF65: 5 | AG65: 5 | AJ65: 57 | AK65: 1705 | AL65: 0.1705
A66: 62 | B66: 0.8922166808 | C66: 6 | X66: 3 | Y66: 5 | Z66: 6 | AA66: 3 | AB66: 5 | AC66: 3 | AD66: 3 | AE66: 6 | AF66: 6 | AG66: 6 | AJ66: 58 | AK66: 1677 | AL66: 0.1677
A67: 63 | B67: 0.1073348802 | C67: 1 | X67: 5 | Y67: 2 | Z67: 1 | AA67: 3 | AB67: 6 | AC67: 5 | AD67: 1 | AE67: 6 | AF67: 1 | AG67: 2 | AJ67: 59 | AK67: 1639 | AL67: 0.1639
A68: 64 | B68: 0.01481262803 | C68: 1 | X68: 5 | Y68: 5 | Z68: 4 | AA68: 6 | AB68: 1 | AC68: 3 | AD68: 1 | AE68: 6 | AF68: 3 | AG68: 3 | AJ68: 60 | AK68: 1697 | AL68: 0.1697
A69: 65 | B69: 0.5546622714 | C69: 4 | X69: =RANDBETWEEN(1,6) -> 1 | Y69: 5 | Z69: 2 | AA69: 3 | AB69: 4 | AC69: 6 | AD69: 2 | AE69: 4 | AF69: 5 | AG69: 1 | AJ69: 61 | AK69: 1590 | AL69: 0.159
A70: 66 | B70: =RAND() -> 0.8039481624 | C70: =INT(B70*6+1) -> 5 | X70: 4 | Y70: 2 | Z70: 5 | AA70: 3 | AB70: 2 | AC70: 6 | AD70: 1 | AE70: 1 | AF70: 1 | AG70: 4 | AJ70: 62 | AK70: 1647 | AL70: 0.1647
A71: 67 | B71: 0.03747344044 | C71: 1 | X71: 5 | Y71: 1 | Z71: 6 | AA71: 5 | AB71: 4 | AC71: 6 | AD71: 6 | AE71: 3 | AF71: 4 | AG71: 1 | AJ71: 63 | AK71: 1725 | AL71: 0.1725
A72: 68 | B72: 0.9179165307 | C72: 6 | X72: 6 | Y72: 3 | Z72: 3 | AA72: 2 | AB72: 5 | AC72: 2 | AD72: 3 | AE72: 1 | AF72: 6 | AG72: 5 | AJ72: 64 | AK72: 1667 | AL72: 0.1667
A73: 69 | B73: 0.9076685209 | C73: 6 | X73: 5 | Y73: 1 | Z73: 4 | AA73: 3 | AB73: 1 | AC73: 2 | AD73: 5 | AE73: 1 | AF73: 2 | AG73: 2 | AJ73: 65 | AK73: 1672 | AL73: 0.1672
A74: 70 | B74: 0.3810951544 | C74: 3 | X74: 3 | Y74: 1 | Z74: 3 | AA74: 4 | AB74: 3 | AC74: 3 | AD74: 6 | AE74: 3 | AF74: 5 | AG74: 3 | AJ74: 66 | AK74: 1682 | AL74: 0.1682
A75: 71 | B75: 0.7251900337 | C75: 5 | X75: 5 | Y75: 2 | Z75: 4 | AA75: 2 | AB75: 1 | AC75: 3 | AD75: 5 | AE75: 4 | AF75: 3 | AG75: 4 | AJ75: 67 | AK75: 1664 | AL75: 0.1664
A76: 72 | B76: 0.3902643033 | C76: 3 | X76: 5 | Y76: 4 | Z76: 5 | AA76: 2 | AB76: 5 | AC76: 4 | AD76: 4 | AE76: 5 | AF76: 4 | AG76: 6 | AJ76: 68 | AK76: 1626 | AL76: 0.1626
A77: 73 | B77: 0.09432197619 | C77: 1 | X77: 3 | Y77: 3 | Z77: 1 | AA77: 6 | AB77: 6 | AC77: 6 | AD77: 2 | AE77: 1 | AF77: 3 | AG77: 5 | AJ77: 69 | AK77: 1620 | AL77: 0.162
A78: 74 | B78: 0.593965236 | C78: 4 | X78: 6 | Y78: 1 | Z78: 1 | AA78: 1 | AB78: 2 | AC78: 1 | AD78: 4 | AE78: 3 | AF78: 4 | AG78: 2 | AJ78: 70 | AK78: 1716 | AL78: 0.1716
A79: 75 | B79: 0.6890571003 | C79: 5 | X79: 3 | Y79: 2 | Z79: 1 | AA79: 1 | AB79: 3 | AC79: 4 | AD79: 6 | AE79: 3 | AF79: 6 | AG79: 4 | AJ79: 71 | AK79: 1694 | AL79: 0.1694
A80: 76 | B80: 0.6434334382 | C80: 4 | X80: 6 | Y80: 2 | Z80: 3 | AA80: 5 | AB80: 1 | AC80: 2 | AD80: 6 | AE80: 6 | AF80: 1 | AG80: 5 | AJ80: 72 | AK80: 1687 | AL80: 0.1687
A81: 77 | B81: 0.420999642 | C81: 3 | X81: 1 | Y81: 2 | Z81: 1 | AA81: 2 | AB81: 3 | AC81: 1 | AD81: 5 | AE81: 4 | AF81: 4 | AG81: 4 | AJ81: 73 | AK81: 1595 | AL81: 0.1595
A82: 78 | B82: 0.7341199023 | C82: 5 | X82: 5 | Y82: 5 | Z82: 3 | AA82: 6 | AB82: 5 | AC82: 6 | AD82: 5 | AE82: 1 | AF82: 1 | AG82: 2 | AJ82: 74 | AK82: 1687 | AL82: 0.1687
A83: 79 | B83: 0.1772550063 | C83: 2 | X83: 1 | Y83: 4 | Z83: 6 | AA83: 6 | AB83: 6 | AC83: 4 | AD83: 3 | AE83: 1 | AF83: 2 | AG83: 1 | AJ83: 75 | AK83: 1590 | AL83: 0.159
A84: 80 | B84: 0.7332604225 | C84: 5 | X84: 2 | Y84: 3 | Z84: 4 | AA84: 1 | AB84: 4 | AC84: 6 | AD84: 6 | AE84: 1 | AF84: 2 | AG84: 6 | AJ84: 76 | AK84: 1658 | AL84: 0.1658
A85: 81 | B85: 0.05672217511 | C85: 1 | X85: =RANDBETWEEN(1,6) -> 4 | Y85: 3 | Z85: 3 | AA85: 1 | AB85: 3 | AC85: 5 | AD85: 4 | AE85: 5 | AF85: 3 | AG85: 5 | AJ85: 77 | AK85: 1635 | AL85: 0.1635
A86: 82 | B86: 0.603284899 | C86: 4 | X86: 3 | Y86: 4 | Z86: 2 | AA86: 6 | AB86: 6 | AC86: 6 | AD86: 5 | AE86: 6 | AF86: 4 | AG86: 5 | AJ86: 78 | AK86: 1692 | AL86: 0.1692
A87: 83 | B87: 0.9572330046 | C87: 6 | X87: 3 | Y87: 6 | Z87: 6 | AA87: 2 | AB87: 2 | AC87: 3 | AD87: 2 | AE87: 3 | AF87: 5 | AG87: 4 | AJ87: 79 | AK87: 1616 | AL87: 0.1616
A88: 84 | B88: 0.7051967915 | C88: 5 | X88: 6 | Y88: 3 | Z88: 5 | AA88: 5 | AB88: 1 | AC88: 3 | AD88: 2 | AE88: 2 | AF88: 5 | AG88: 3 | AJ88: 80 | AK88: 1673 | AL88: 0.1673
A89: 85 | B89: 0.6147459157 | C89: 4 | X89: 1 | Y89: 1 | Z89: 2 | AA89: 2 | AB89: 4 | AC89: 6 | AD89: 6 | AE89: 3 | AF89: 6 | AG89: 4 | AJ89: 81 | AK89: 1707 | AL89: 0.1707
A90: 86 | B90: 0.8596769401 | C90: 6 | X90: 1 | Y90: 6 | Z90: 4 | AA90: 3 | AB90: 4 | AC90: 3 | AD90: 5 | AE90: 1 | AF90: 2 | AG90: 2 | AJ90: 82 | AK90: 1746 | AL90: 0.1746
A91: 87 | B91: 0.03072527189 | C91: 1 | X91: 1 | Y91: 1 | Z91: 6 | AA91: 4 | AB91: 5 | AC91: 3 | AD91: 3 | AE91: 2 | AF91: 5 | AG91: 4 | AJ91: 83 | AK91: 1705 | AL91: 0.1705
A92: 88 | B92: 0.2613557015 | C92: 2 | X92: 4 | Y92: 2 | Z92: 6 | AA92: 2 | AB92: 3 | AC92: 3 | AD92: 3 | AE92: 4 | AF92: 3 | AG92: 3 | AJ92: 84 | AK92: 1639 | AL92: 0.1639
A93: 89 | B93: 0.09100016308 | C93: 1 | X93: 3 | Y93: 1 | Z93: 2 | AA93: 3 | AB93: 2 | AC93: 5 | AD93: 3 | AE93: 4 | AF93: 4 | AG93: 1 | AJ93: 85 | AK93: 1602 | AL93: 0.1602
A94: 90 | B94: 0.01347806367 | C94: 1 | X94: 3 | Y94: 1 | Z94: 6 | AA94: 4 | AB94: 5 | AC94: 4 | AD94: 5 | AE94: 1 | AF94: 3 | AG94: 6 | AJ94: 86 | AK94: 1705 | AL94: 0.1705
A95: 91 | B95: 0.2203842738 | C95: 2 | X95: 3 | Y95: 4 | Z95: 3 | AA95: 2 | AB95: 2 | AC95: 4 | AD95: 5 | AE95: 3 | AF95: 1 | AG95: 5 | AJ95: 87 | AK95: 1659 | AL95: 0.1659
A96: 92 | B96: 0.1516875372 | C96: 1 | X96: 1 | Y96: 1 | Z96: 6 | AA96: 1 | AB96: 3 | AC96: 5 | AD96: 5 | AE96: 1 | AF96: 4 | AG96: 1 | AJ96: 88 | AK96: 1633 | AL96: 0.1633
A97: 93 | B97: 0.7899582664 | C97: 5 | X97: 6 | Y97: 5 | Z97: 4 | AA97: 2 | AB97: 5 | AC97: 1 | AD97: 5 | AE97: 3 | AF97: 2 | AG97: 2 | AJ97: 89 | AK97: 1705 | AL97: 0.1705
A98: 94 | B98: 0.7477229213 | C98: 5 | X98: 5 | Y98: 5 | Z98: 1 | AA98: 1 | AB98: 1 | AC98: 6 | AD98: 5 | AE98: 3 | AF98: 3 | AG98: 1 | AJ98: 90 | AK98: 1696 | AL98: 0.1696
A99: 95 | B99: 0.8988984053 | C99: 6 | X99: 1 | Y99: 5 | Z99: 4 | AA99: 3 | AB99: 4 | AC99: 6 | AD99: 1 | AE99: 5 | AF99: 1 | AG99: 4 | AJ99: 91 | AK99: 1650 | AL99: 0.165
A100: 96 | B100: 0.6388668912 | C100: 4 | X100: 4 | Y100: 3 | Z100: 1 | AA100: 4 | AB100: 6 | AC100: 3 | AD100: 2 | AE100: 3 | AF100: 2 | AG100: 5 | AJ100: 92 | AK100: 1586 | AL100: 0.1586
A101: 97 | B101: 0.179497403 | C101: 2 | X101: =RANDBETWEEN(1,6) -> 1 | Y101: 5 | Z101: 4 | AA101: 5 | AB101: 5 | AC101: 5 | AD101: 2 | AE101: 2 | AF101: 2 | AG101: 4 | AJ101: 93 | AK101: 1632 | AL101: 0.1632
A102: 98 | B102: 0.5923965658 | C102: 4 | X102: 4 | Y102: 5 | Z102: 5 | AA102: 6 | AB102: 2 | AC102: 4 | AD102: 6 | AE102: 4 | AF102: 6 | AG102: 6 | AJ102: 94 | AK102: 1630 | AL102: 0.163
A103: 99 | B103: 0.3950380978 | C103: 3 | X103: 3 | Y103: 1 | Z103: 5 | AA103: 5 | AB103: 5 | AC103: 3 | AD103: 5 | AE103: 1 | AF103: 4 | AG103: 5 | AJ103: 95 | AK103: 1651 | AL103: 0.1651
A104: 100 | B104: 0.188564804 | C104: 2 | X104: 3 | Y104: 3 | Z104: 5 | AA104: 1 | AB104: 6 | AC104: 6 | AD104: 6 | AE104: 4 | AF104: 2 | AG104: 1 | AJ104: 96 | AK104: 1741 | AL104: 0.1741
A105: 101 | B105: 0.1310046853 | C105: 1 | X105: 3 | Y105: 3 | Z105: 1 | AA105: 4 | AB105: 4 | AC105: 2 | AD105: 6 | AE105: 5 | AF105: 6 | AG105: 4 | AJ105: 97 | AK105: 1656 | AL105: 0.1656
A106: 102 | B106: 0.3962351777 | C106: 3 | X106: 5 | Y106: 6 | Z106: 4 | AA106: 6 | AB106: 2 | AC106: 5 | AD106: 5 | AE106: 2 | AF106: 3 | AG106: 3 | AJ106: 98 | AK106: 1633 | AL106: 0.1633
A107: 103 | B107: 0.5595017443 | C107: 4 | X107: 1 | Y107: 3 | Z107: 4 | AA107: 6 | AB107: 6 | AC107: 5 | AD107: 6 | AE107: 2 | AF107: 1 | AG107: 6 | AJ107: 99 | AK107: 1691 | AL107: 0.1691
A108: 104 | B108: 0.3668088113 | C108: 3 | X108: 1 | Y108: 5 | Z108: 4 | AA108: 2 | AB108: 5 | AC108: 3 | AD108: 2 | AE108: 4 | AF108: 6 | AG108: 3 | AJ108: 100 | AK108: 1708 | AL108: 0.1708
A109: 105 | B109: 0.03899635566 | C109: 1 | X109: 4 | Y109: 1 | Z109: 4 | AA109: 3 | AB109: 5 | AC109: 3 | AD109: 3 | AE109: 4 | AF109: 3 | AG109: 1 | AJ109: 101 | AK109: 1579 | AL109: 0.1579
A110: 106 | B110: 0.9503981866 | C110: 6 | X110: 1 | Y110: 5 | Z110: 6 | AA110: 6 | AB110: 6 | AC110: 4 | AD110: 6 | AE110: 5 | AF110: 2 | AG110: 6 | AJ110: 102 | AK110: 1610 | AL110: 0.161
A111: 107 | B111: 0.8334183155 | C111: 6 | X111: 4 | Y111: 4 | Z111: 4 | AA111: 4 | AB111: 6 | AC111: 3 | AD111: 3 | AE111: 2 | AF111: 6 | AG111: 2 | AJ111: 103 | AK111: 1696 | AL111: 0.1696
A112: 108 | B112: 0.9639464119 | C112: 6 | X112: 5 | Y112: 2 | Z112: 3 | AA112: 1 | AB112: 1 | AC112: 3 | AD112: 1 | AE112: 5 | AF112: 6 | AG112: 1 | AJ112: 104 | AK112: 1627 | AL112: 0.1627
A113: 109 | B113: 0.5541830468 | C113: 4 | X113: 3 | Y113: 5 | Z113: 3 | AA113: 6 | AB113: 4 | AC113: 5 | AD113: 1 | AE113: 4 | AF113: 5 | AG113: 3 | AJ113: 105 | AK113: 1687 | AL113: 0.1687
A114: 110 | B114: 0.4852312213 | C114: 3 | X114: 4 | Y114: 6 | Z114: 5 | AA114: 1 | AB114: 6 | AC114: 6 | AD114: 2 | AE114: 6 | AF114: 1 | AG114: 2 | AJ114: 106 | AK114: 1666 | AL114: 0.1666
A115: 111 | B115: 0.3198916397 | C115: 2 | X115: 1 | Y115: 6 | Z115: 2 | AA115: 6 | AB115: 1 | AC115: 4 | AD115: 1 | AE115: 3 | AF115: 2 | AG115: 6 | AJ115: 107 | AK115: 1691 | AL115: 0.1691
A116: 112 | B116: 0.4296046901 | C116: 3 | X116: 5 | Y116: 4 | Z116: 3 | AA116: 2 | AB116: 4 | AC116: 3 | AD116: 2 | AE116: 1 | AF116: 6 | AG116: 1 | AJ116: 108 | AK116: 1604 | AL116: 0.1604
A117: 113 | B117: 0.1234788707 | C117: 1 | X117: =RANDBETWEEN(1,6) -> 6 | Y117: 3 | Z117: 2 | AA117: 3 | AB117: 1 | AC117: 2 | AD117: 4 | AE117: 4 | AF117: 1 | AG117: 3 | AJ117: 109 | AK117: 1696 | AL117: 0.1696
A118: 114 | B118: 0.1689990817 | C118: 2 | X118: 1 | Y118: 4 | Z118: 3 | AA118: 5 | AB118: 1 | AC118: 1 | AD118: 2 | AE118: 3 | AF118: 1 | AG118: 1 | AJ118: 110 | AK118: 1672 | AL118: 0.1672
A119: 115 | B119: 0.5295852053 | C119: 4 | X119: 1 | Y119: 3 | Z119: 3 | AA119: 3 | AB119: 6 | AC119: 3 | AD119: 5 | AE119: 2 | AF119: 3 | AG119: 5 | AJ119: 111 | AK119: 1665 | AL119: 0.1665
A120: 116 | B120: 0.1307630763 | C120: 1 | X120: 5 | Y120: 2 | Z120: 5 | AA120: 1 | AB120: 5 | AC120: 5 | AD120: 4 | AE120: 3 | AF120: 1 | AG120: 3 | AJ120: 112 | AK120: 1721 | AL120: 0.1721
A121: 117 | B121: 0.047740771 | C121: 1 | X121: 4 | Y121: 4 | Z121: 1 | AA121: 4 | AB121: 5 | AC121: 1 | AD121: 6 | AE121: 3 | AF121: 2 | AG121: 4 | AJ121: 113 | AK121: 1743 | AL121: 0.1743
A122: 118 | B122: 0.09917112313 | C122: 1 | X122: 3 | Y122: 6 | Z122: 5 | AA122: 6 | AB122: 1 | AC122: 4 | AD122: 2 | AE122: 4 | AF122: 4 | AG122: 5 | AJ122: 114 | AK122: 1688 | AL122: 0.1688
A123: 119 | B123: 0.1500346867 | C123: 1 | X123: 2 | Y123: 4 | Z123: 3 | AA123: 1 | AB123: 5 | AC123: 1 | AD123: 1 | AE123: 1 | AF123: 4 | AG123: 5 | AJ123: 115 | AK123: 1681 | AL123: 0.1681
A124: 120 | B124: 0.4819742271 | C124: 3 | X124: 2 | Y124: 3 | Z124: 1 | AA124: 3 | AB124: 6 | AC124: 4 | AD124: 3 | AE124: 4 | AF124: 4 | AG124: 4 | AJ124: 116 | AK124: 1698 | AL124: 0.1698
A125: 121 | B125: 0.6167618821 | C125: 4 | X125: 3 | Y125: 5 | Z125: 5 | AA125: 1 | AB125: 2 | AC125: 2 | AD125: 1 | AE125: 3 | AF125: 5 | AG125: 3 | AJ125: 117 | AK125: 1712 | AL125: 0.1712
A126: 122 | B126: 0.4319572 | C126: 3 | X126: 5 | Y126: 4 | Z126: 6 | AA126: 3 | AB126: 6 | AC126: 5 | AD126: 4 | AE126: 1 | AF126: 1 | AG126: 4 | AJ126: 118 | AK126: 1601 | AL126: 0.1601
A127: 123 | B127: 0.4697076185 | C127: 3 | X127: 5 | Y127: 2 | Z127: 5 | AA127: 4 | AB127: 4 | AC127: 1 | AD127: 3 | AE127: 5 | AF127: 3 | AG127: 6 | AJ127: 119 | AK127: 1691 | AL127: 0.1691
A128: 124 | B128: 0.8827421256 | C128: 6 | X128: 6 | Y128: 6 | Z128: 6 | AA128: 4 | AB128: 4 | AC128: 6 | AD128: 2 | AE128: 6 | AF128: 6 | AG128: 6 | AJ128: 120 | AK128: 1693 | AL128: 0.1693
A129: 125 | B129: 0.4539353659 | C129: 3 | X129: 4 | Y129: 1 | Z129: 2 | AA129: 6 | AB129: 1 | AC129: 2 | AD129: 6 | AE129: 5 | AF129: 3 | AG129: 2 | AJ129: 121 | AK129: 1685 | AL129: 0.1685
A130: 126 | B130: 0.3177337444 | C130: 2 | X130: 1 | Y130: 4 | Z130: 6 | AA130: 3 | AB130: 5 | AC130: 3 | AD130: 1 | AE130: 5 | AF130: 3 | AG130: 1 | AJ130: 122 | AK130: 1691 | AL130: 0.1691
A131: 127 | B131: 0.6267211874 | C131: 4 | X131: 5 | Y131: 6 | Z131: 1 | AA131: 1 | AB131: 5 | AC131: 5 | AD131: 6 | AE131: 1 | AF131: 5 | AG131: 1 | AJ131: 123 | AK131: 1625 | AL131: 0.1625
A132: 128 | B132: 0.1212686096 | C132: 1 | X132: 1 | Y132: 3 | Z132: 6 | AA132: 3 | AB132: 3 | AC132: 1 | AD132: 5 | AE132: 4 | AF132: 6 | AG132: 2 | AJ132: 124 | AK132: 1634 | AL132: 0.1634
A133: 129 | B133: 0.06756164907 | C133: 1 | X133: =RANDBETWEEN(1,6) -> 6 | Y133: 2 | Z133: 4 | AA133: 5 | AB133: 2 | AC133: 6 | AD133: 2 | AE133: 5 | AF133: 2 | AG133: 4 | AJ133: 125 | AK133: 1714 | AL133: 0.1714
A134: 130 | B134: =RAND() -> 0.7734671867 | C134: =INT(B134*6+1) -> 5 | X134: 1 | Y134: 2 | Z134: 4 | AA134: 2 | AB134: 5 | AC134: 5 | AD134: 2 | AE134: 4 | AF134: 1 | AG134: 1 | AJ134: 126 | AK134: 1672 | AL134: 0.1672
A135: 131 | B135: 0.3350439891 | C135: 3 | X135: 3 | Y135: 3 | Z135: 6 | AA135: 6 | AB135: 3 | AC135: 6 | AD135: 4 | AE135: 6 | AF135: 4 | AG135: 5 | AJ135: 127 | AK135: 1607 | AL135: 0.1607
A136: 132 | B136: 0.03357808068 | C136: 1 | X136: 5 | Y136: 5 | Z136: 6 | AA136: 4 | AB136: 6 | AC136: 6 | AD136: 5 | AE136: 6 | AF136: 6 | AG136: 1 | AJ136: 128 | AK136: 1625 | AL136: 0.1625
A137: 133 | B137: 0.3109745611 | C137: 2 | X137: 3 | Y137: 1 | Z137: 6 | AA137: 3 | AB137: 4 | AC137: 1 | AD137: 1 | AE137: 2 | AF137: 1 | AG137: 3 | AJ137: 129 | AK137: 1691 | AL137: 0.1691
A138: 134 | B138: 0.4925663538 | C138: 3 | X138: 5 | Y138: 6 | Z138: 5 | AA138: 5 | AB138: 2 | AC138: 1 | AD138: 6 | AE138: 6 | AF138: 4 | AG138: 1 | AJ138: 130 | AK138: 1669 | AL138: 0.1669
A139: 135 | B139: 0.4472594145 | C139: 3 | X139: 2 | Y139: 3 | Z139: 5 | AA139: 2 | AB139: 3 | AC139: 6 | AD139: 4 | AE139: 1 | AF139: 5 | AG139: 4 | AJ139: 131 | AK139: 1640 | AL139: 0.164
A140: 136 | B140: 0.2076025557 | C140: 2 | X140: 1 | Y140: 5 | Z140: 1 | AA140: 1 | AB140: 5 | AC140: 5 | AD140: 4 | AE140: 4 | AF140: 6 | AG140: 5 | AJ140: 132 | AK140: 1747 | AL140: 0.1747
A141: 137 | B141: 0.4331897116 | C141: 3 | X141: 6 | Y141: 1 | Z141: 2 | AA141: 6 | AB141: 6 | AC141: 5 | AD141: 4 | AE141: 5 | AF141: 1 | AG141: 3 | AJ141: 133 | AK141: 1635 | AL141: 0.1635
A142: 138 | B142: 0.4951780817 | C142: 3 | X142: 2 | Y142: 6 | Z142: 3 | AA142: 6 | AB142: 1 | AC142: 6 | AD142: 6 | AE142: 5 | AF142: 2 | AG142: 3 | AJ142: 134 | AK142: 1660 | AL142: 0.166
A143: 139 | B143: 0.1043265711 | C143: 1 | X143: 6 | Y143: 4 | Z143: 2 | AA143: 2 | AB143: 2 | AC143: 4 | AD143: 5 | AE143: 1 | AF143: 5 | AG143: 3 | AJ143: 135 | AK143: 1643 | AL143: 0.1643
A144: 140 | B144: 0.4314471421 | C144: 3 | X144: 5 | Y144: 1 | Z144: 1 | AA144: 6 | AB144: 3 | AC144: 5 | AD144: 1 | AE144: 5 | AF144: 5 | AG144: 3 | AJ144: 136 | AK144: 1706 | AL144: 0.1706
A145: 141 | B145: 0.8339107881 | C145: 6 | X145: 3 | Y145: 4 | Z145: 6 | AA145: 1 | AB145: 2 | AC145: 3 | AD145: 3 | AE145: 5 | AF145: 5 | AG145: 4 | AJ145: 137 | AK145: 1653 | AL145: 0.1653
A146: 142 | B146: 0.5441983622 | C146: 4 | X146: 2 | Y146: 2 | Z146: 2 | AA146: 4 | AB146: 1 | AC146: 3 | AD146: 1 | AE146: 4 | AF146: 2 | AG146: 5 | AJ146: 138 | AK146: 1636 | AL146: 0.1636
A147: 143 | B147: 0.2803065694 | C147: 2 | X147: 1 | Y147: 3 | Z147: 4 | AA147: 2 | AB147: 1 | AC147: 4 | AD147: 1 | AE147: 5 | AF147: 6 | AG147: 3 | AJ147: 139 | AK147: 1645 | AL147: 0.1645
A148: 144 | B148: 0.5498077533 | C148: 4 | X148: 4 | Y148: 1 | Z148: 3 | AA148: 4 | AB148: 2 | AC148: 1 | AD148: 4 | AE148: 4 | AF148: 6 | AG148: 1 | AJ148: 140 | AK148: 1640 | AL148: 0.164
A149: 145 | B149: 0.5006907166 | C149: 4 | X149: =RANDBETWEEN(1,6) -> 2 | Y149: 6 | Z149: 5 | AA149: 3 | AB149: 3 | AC149: 2 | AD149: 6 | AE149: 5 | AF149: 6 | AG149: 6 | AJ149: 141 | AK149: 1654 | AL149: 0.1654
A150: 146 | B150: 0.7029320339 | C150: 5 | X150: 6 | Y150: 1 | Z150: 6 | AA150: 2 | AB150: 6 | AC150: 6 | AD150: 5 | AE150: 4 | AF150: 1 | AG150: 6 | AJ150: 142 | AK150: 1654 | AL150: 0.1654
A151: 147 | B151: 0.202113157 | C151: 2 | X151: 4 | Y151: 3 | Z151: 1 | AA151: 5 | AB151: 6 | AC151: 4 | AD151: 5 | AE151: 5 | AF151: 5 | AG151: 3 | AJ151: 143 | AK151: 1650 | AL151: 0.165
A152: 148 | B152: 0.7056077721 | C152: 5 | X152: 2 | Y152: 2 | Z152: 5 | AA152: 5 | AB152: 2 | AC152: 5 | AD152: 4 | AE152: 3 | AF152: 3 | AG152: 1 | AJ152: 144 | AK152: 1698 | AL152: 0.1698
A153: 149 | B153: 0.6498121392 | C153: 4 | X153: 2 | Y153: 5 | Z153: 2 | AA153: 3 | AB153: 5 | AC153: 2 | AD153: 6 | AE153: 4 | AF153: 1 | AG153: 5 | AJ153: 145 | AK153: 1752 | AL153: 0.1752
A154: 150 | B154: 0.2373650203 | C154: 2 | X154: 3 | Y154: 1 | Z154: 3 | AA154: 4 | AB154: 3 | AC154: 4 | AD154: 4 | AE154: 4 | AF154: 1 | AG154: 6 | AJ154: 146 | AK154: 1678 | AL154: 0.1678
A155: 151 | B155: 0.3500639834 | C155: 3 | X155: 4 | Y155: 3 | Z155: 6 | AA155: 2 | AB155: 5 | AC155: 2 | AD155: 5 | AE155: 3 | AF155: 5 | AG155: 5 | AJ155: 147 | AK155: 1595 | AL155: 0.1595
A156: 152 | B156: 0.6126940057 | C156: 4 | X156: 4 | Y156: 3 | Z156: 5 | AA156: 1 | AB156: 4 | AC156: 3 | AD156: 1 | AE156: 4 | AF156: 4 | AG156: 2 | AJ156: 148 | AK156: 1633 | AL156: 0.1633
A157: 153 | B157: 0.7661074647 | C157: 5 | X157: 1 | Y157: 5 | Z157: 2 | AA157: 6 | AB157: 1 | AC157: 2 | AD157: 3 | AE157: 6 | AF157: 1 | AG157: 4 | AJ157: 149 | AK157: 1652 | AL157: 0.1652
A158: 154 | B158: 0.3424796523 | C158: 3 | X158: 2 | Y158: 2 | Z158: 2 | AA158: 4 | AB158: 5 | AC158: 6 | AD158: 5 | AE158: 2 | AF158: 4 | AG158: 1 | AJ158: 150 | AK158: 1641 | AL158: 0.1641
A159: 155 | B159: 0.4815338813 | C159: 3 | X159: 1 | Y159: 2 | Z159: 3 | AA159: 2 | AB159: 4 | AC159: 1 | AD159: 6 | AE159: 2 | AF159: 1 | AG159: 5 | AJ159: 151 | AK159: 1696 | AL159: 0.1696
A160: 156 | B160: 0.5296931259 | C160: 4 | X160: 3 | Y160: 5 | Z160: 2 | AA160: 2 | AB160: 2 | AC160: 4 | AD160: 1 | AE160: 2 | AF160: 6 | AG160: 1 | AJ160: 152 | AK160: 1606 | AL160: 0.1606
A161: 157 | B161: 0.4990374831 | C161: 3 | X161: 1 | Y161: 2 | Z161: 2 | AA161: 2 | AB161: 5 | AC161: 4 | AD161: 5 | AE161: 5 | AF161: 2 | AG161: 6 | AJ161: 153 | AK161: 1637 | AL161: 0.1637
A162: 158 | B162: 0.3262661551 | C162: 2 | X162: 4 | Y162: 3 | Z162: 6 | AA162: 6 | AB162: 5 | AC162: 4 | AD162: 2 | AE162: 1 | AF162: 4 | AG162: 4 | AJ162: 154 | AK162: 1723 | AL162: 0.1723
A163: 159 | B163: 0.4437637619 | C163: 3 | X163: 6 | Y163: 3 | Z163: 6 | AA163: 2 | AB163: 5 | AC163: 4 | AD163: 1 | AE163: 6 | AF163: 1 | AG163: 6 | AJ163: 155 | AK163: 1630 | AL163: 0.163
A164: 160 | B164: 0.568873903 | C164: 4 | X164: 1 | Y164: 5 | Z164: 6 | AA164: 5 | AB164: 1 | AC164: 1 | AD164: 1 | AE164: 1 | AF164: 4 | AG164: 5 | AJ164: 156 | AK164: 1688 | AL164: 0.1688
A165: 161 | B165: 0.2098838783 | C165: 2 | X165: =RANDBETWEEN(1,6) -> 3 | Y165: 4 | Z165: 4 | AA165: 6 | AB165: 3 | AC165: 1 | AD165: 4 | AE165: 2 | AF165: 5 | AG165: 6 | AJ165: 157 | AK165: 1690 | AL165: 0.169
A166: 162 | B166: 0.4529268316 | C166: 3 | X166: 1 | Y166: 4 | Z166: 2 | AA166: 3 | AB166: 4 | AC166: 6 | AD166: 5 | AE166: 6 | AF166: 6 | AG166: 1 | AJ166: 158 | AK166: 1658 | AL166: 0.1658
A167: 163 | B167: 0.253238774 | C167: 2 | X167: 3 | Y167: 1 | Z167: 4 | AA167: 2 | AB167: 6 | AC167: 6 | AD167: 1 | AE167: 2 | AF167: 5 | AG167: 4 | AJ167: 159 | AK167: 1656 | AL167: 0.1656
A168: 164 | B168: 0.1836385176 | C168: 2 | X168: 4 | Y168: 6 | Z168: 3 | AA168: 4 | AB168: 1 | AC168: 1 | AD168: 2 | AE168: 1 | AF168: 5 | AG168: 6 | AJ168: 160 | AK168: 1654 | AL168: 0.1654
A169: 165 | B169: 0.5652946071 | C169: 4 | X169: 1 | Y169: 1 | Z169: 2 | AA169: 5 | AB169: 1 | AC169: 3 | AD169: 1 | AE169: 4 | AF169: 4 | AG169: 5 | AJ169: 161 | AK169: 1674 | AL169: 0.1674
A170: 166 | B170: 0.8602388088 | C170: 6 | X170: 4 | Y170: 5 | Z170: 1 | AA170: 4 | AB170: 6 | AC170: 4 | AD170: 3 | AE170: 3 | AF170: 6 | AG170: 2 | AJ170: 162 | AK170: 1649 | AL170: 0.1649
A171: 167 | B171: 0.01921134821 | C171: 1 | X171: 2 | Y171: 6 | Z171: 2 | AA171: 4 | AB171: 5 | AC171: 2 | AD171: 1 | AE171: 3 | AF171: 5 | AG171: 3 | AJ171: 163 | AK171: 1648 | AL171: 0.1648
A172: 168 | B172: 0.5887279411 | C172: 4 | X172: 4 | Y172: 6 | Z172: 3 | AA172: 4 | AB172: 2 | AC172: 6 | AD172: 4 | AE172: 4 | AF172: 2 | AG172: 4 | AJ172: 164 | AK172: 1641 | AL172: 0.1641
A173: 169 | B173: 0.7720059776 | C173: 5 | X173: 5 | Y173: 2 | Z173: 5 | AA173: 5 | AB173: 1 | AC173: 2 | AD173: 3 | AE173: 1 | AF173: 3 | AG173: 2 | AJ173: 165 | AK173: 1627 | AL173: 0.1627
A174: 170 | B174: 0.3288097919 | C174: 2 | X174: 6 | Y174: 2 | Z174: 4 | AA174: 1 | AB174: 1 | AC174: 3 | AD174: 2 | AE174: 6 | AF174: 5 | AG174: 4 | AJ174: 166 | AK174: 1643 | AL174: 0.1643
A175: 171 | B175: 0.2098232226 | C175: 2 | X175: 5 | Y175: 3 | Z175: 1 | AA175: 3 | AB175: 3 | AC175: 6 | AD175: 1 | AE175: 2 | AF175: 3 | AG175: 4 | AJ175: 167 | AK175: 1654 | AL175: 0.1654
A176: 172 | B176: 0.5242581128 | C176: 4 | X176: 1 | Y176: 2 | Z176: 6 | AA176: 2 | AB176: 4 | AC176: 6 | AD176: 5 | AE176: 6 | AF176: 4 | AG176: 3 | AJ176: 168 | AK176: 1735 | AL176: 0.1735
A177: 173 | B177: 0.6102256876 | C177: 4 | X177: 4 | Y177: 4 | Z177: 3 | AA177: 4 | AB177: 5 | AC177: 3 | AD177: 3 | AE177: 2 | AF177: 5 | AG177: 6 | AJ177: 169 | AK177: 1647 | AL177: 0.1647
A178: 174 | B178: 0.3528082699 | C178: 3 | X178: 6 | Y178: 5 | Z178: 1 | AA178: 5 | AB178: 3 | AC178: 2 | AD178: 6 | AE178: 3 | AF178: 5 | AG178: 4 | AJ178: 170 | AK178: 1692 | AL178: 0.1692
A179: 175 | B179: 0.07505749281 | C179: 1 | X179: 5 | Y179: 2 | Z179: 6 | AA179: 2 | AB179: 2 | AC179: 6 | AD179: 5 | AE179: 1 | AF179: 1 | AG179: 1 | AJ179: 171 | AK179: 1649 | AL179: 0.1649
A180: 176 | B180: 0.7543220203 | C180: 5 | X180: 1 | Y180: 3 | Z180: 6 | AA180: 1 | AB180: 5 | AC180: 3 | AD180: 1 | AE180: 2 | AF180: 6 | AG180: 4 | AJ180: 172 | AK180: 1637 | AL180: 0.1637
A181: 177 | B181: 0.5615117806 | C181: 4 | X181: =RANDBETWEEN(1,6) -> 4 | Y181: 1 | Z181: 4 | AA181: 2 | AB181: 4 | AC181: 6 | AD181: 3 | AE181: 1 | AF181: 2 | AG181: 2 | AJ181: 173 | AK181: 1689 | AL181: 0.1689
A182: 178 | B182: 0.5925015952 | C182: 4 | X182: 1 | Y182: 4 | Z182: 2 | AA182: 2 | AB182: 4 | AC182: 6 | AD182: 4 | AE182: 2 | AF182: 4 | AG182: 5 | AJ182: 174 | AK182: 1679 | AL182: 0.1679
A183: 179 | B183: 0.9272205254 | C183: 6 | X183: 3 | Y183: 3 | Z183: 2 | AA183: 1 | AB183: 2 | AC183: 2 | AD183: 1 | AE183: 1 | AF183: 1 | AG183: 5 | AJ183: 175 | AK183: 1707 | AL183: 0.1707
A184: 180 | B184: 0.2048704082 | C184: 2 | X184: 1 | Y184: 6 | Z184: 4 | AA184: 6 | AB184: 2 | AC184: 5 | AD184: 6 | AE184: 1 | AF184: 4 | AG184: 2 | AJ184: 176 | AK184: 1642 | AL184: 0.1642
A185: 181 | B185: 0.9273735845 | C185: 6 | X185: 1 | Y185: 2 | Z185: 2 | AA185: 6 | AB185: 6 | AC185: 4 | AD185: 1 | AE185: 4 | AF185: 2 | AG185: 6 | AJ185: 177 | AK185: 1688 | AL185: 0.1688
A186: 182 | B186: 0.6881955603 | C186: 5 | X186: 5 | Y186: 1 | Z186: 5 | AA186: 2 | AB186: 2 | AC186: 6 | AD186: 5 | AE186: 3 | AF186: 4 | AG186: 6 | AJ186: 178 | AK186: 1654 | AL186: 0.1654
A187: 183 | B187: 0.4004597617 | C187: 3 | X187: 4 | Y187: 6 | Z187: 3 | AA187: 4 | AB187: 2 | AC187: 6 | AD187: 2 | AE187: 1 | AF187: 4 | AG187: 1 | AJ187: 179 | AK187: 1677 | AL187: 0.1677
A188: 184 | B188: 0.398622935 | C188: 3 | X188: 3 | Y188: 4 | Z188: 4 | AA188: 3 | AB188: 4 | AC188: 5 | AD188: 4 | AE188: 1 | AF188: 6 | AG188: 2 | AJ188: 180 | AK188: 1664 | AL188: 0.1664
A189: 185 | B189: 0.9051181475 | C189: 6 | X189: 6 | Y189: 1 | Z189: 2 | AA189: 4 | AB189: 2 | AC189: 6 | AD189: 5 | AE189: 3 | AF189: 4 | AG189: 1 | AJ189: 181 | AK189: 1683 | AL189: 0.1683
A190: 186 | B190: 0.8003141047 | C190: 5 | X190: 5 | Y190: 5 | Z190: 4 | AA190: 5 | AB190: 2 | AC190: 3 | AD190: 6 | AE190: 1 | AF190: 6 | AG190: 6 | AJ190: 182 | AK190: 1622 | AL190: 0.1622
A191: 187 | B191: 0.398087438 | C191: 3 | X191: 3 | Y191: 5 | Z191: 5 | AA191: 1 | AB191: 5 | AC191: 5 | AD191: 4 | AE191: 5 | AF191: 2 | AG191: 3 | AJ191: 183 | AK191: 1664 | AL191: 0.1664
A192: 188 | B192: 0.1843967596 | C192: 2 | X192: 1 | Y192: 4 | Z192: 6 | AA192: 6 | AB192: 2 | AC192: 4 | AD192: 3 | AE192: 5 | AF192: 1 | AG192: 4 | AJ192: 184 | AK192: 1692 | AL192: 0.1692
A193: 189 | B193: 0.09297421286 | C193: 1 | X193: 2 | Y193: 3 | Z193: 4 | AA193: 2 | AB193: 4 | AC193: 3 | AD193: 2 | AE193: 4 | AF193: 5 | AG193: 4 | AJ193: 185 | AK193: 1730 | AL193: 0.173
A194: 190 | B194: 0.1385967136 | C194: 1 | X194: 1 | Y194: 2 | Z194: 1 | AA194: 6 | AB194: 2 | AC194: 5 | AD194: 6 | AE194: 4 | AF194: 5 | AG194: 4 | AJ194: 186 | AK194: 1682 | AL194: 0.1682
A195: 191 | B195: 0.9986931827 | C195: 6 | X195: 2 | Y195: 5 | Z195: 1 | AA195: 3 | AB195: 2 | AC195: 5 | AD195: 5 | AE195: 2 | AF195: 3 | AG195: 2 | AJ195: 187 | AK195: 1699 | AL195: 0.1699
A196: 192 | B196: 0.1729806045 | C196: 2 | X196: 6 | Y196: 4 | Z196: 3 | AA196: 6 | AB196: 5 | AC196: 2 | AD196: 3 | AE196: 5 | AF196: 3 | AG196: 4 | AJ196: 188 | AK196: 1636 | AL196: 0.1636
A197: 193 | B197: 0.1314227828 | C197: 1 | X197: =RANDBETWEEN(1,6) -> 6 | Y197: 5 | Z197: 1 | AA197: 1 | AB197: 1 | AC197: 6 | AD197: 5 | AE197: 5 | AF197: 1 | AG197: 6 | AJ197: 189 | AK197: 1752 | AL197: 0.1752
A198: 194 | B198: =RAND() -> 0.9586839872 | C198: =INT(B198*6+1) -> 6 | X198: 6 | Y198: 4 | Z198: 5 | AA198: 4 | AB198: 3 | AC198: 6 | AD198: 5 | AE198: 6 | AF198: 4 | AG198: 4 | AJ198: 190 | AK198: 1671 | AL198: 0.1671
A199: 195 | B199: 0.5889525214 | C199: 4 | X199: 6 | Y199: 1 | Z199: 4 | AA199: 5 | AB199: 5 | AC199: 6 | AD199: 4 | AE199: 1 | AF199: 5 | AG199: 6 | AJ199: 191 | AK199: 1674 | AL199: 0.1674
A200: 196 | B200: 0.5871046642 | C200: 4 | X200: 3 | Y200: 5 | Z200: 2 | AA200: 3 | AB200: 6 | AC200: 4 | AD200: 5 | AE200: 5 | AF200: 4 | AG200: 4 | AJ200: 192 | AK200: 1652 | AL200: 0.1652
A201: 197 | B201: 0.8117292767 | C201: 5 | X201: 4 | Y201: 4 | Z201: 2 | AA201: 4 | AB201: 1 | AC201: 2 | AD201: 5 | AE201: 4 | AF201: 2 | AG201: 6 | AJ201: 193 | AK201: 1696 | AL201: 0.1696
... 803 more rows

Sheet summary
C2: from the 20 saved experiments
D4: standard
C5: average | D5: error
B6: 12 | C6: ='12'!R30 -> 0.1958333333 | D6: ='12'!R31 -> 0.1162901192
B7: 100 | C7: ='100'!R30 -> 0.1655 | D7: ='100'!R31 -> 0.02858249577
B8: 1000 | C8: ='1000'!R30 -> 0.17105 | D8: ='1000'!R31 -> 0.01246304479
B9: 10000 | C9: ='10000'!R30 -> 0.16646 | D9: ='10000'!R31 -> 0.003662198234
